{"text_format":"1","workbook":"xlsx","n_sheets":2,"sheets":["DADOS","BM"],"not_rendered":{"charts":0,"images":5,"macros":1,"external_links":0,"defined_names":64,"comments":2,"pivot_tables":0},"unopened":[],"bounds":{"document_bytes":16777216,"sheet_cells":100000,"rows_first":2000,"rows_last":500,"rows_between":2000,"halvings":0,"cell_chars":16384,"cell_head_chars":4096},"cells_cut":0,"cells_raw":0,"read":"whole","date_system":"1900"}

{"sheet":"DADOS","index":0,"n_rows":71,"n_cols":249,"rows_kept":71,"cut":false,"hidden":false,"merged":[[10,18,10,22],[21,5,21,8],[19,5,19,7],[22,0,22,2],[22,5,22,8],[21,0,21,2],[15,0,15,8],[16,18,16,22],[15,18,15,22],[16,0,16,8],[14,18,14,22],[14,0,14,8],[11,18,11,22],[12,0,12,8],[12,18,12,22],[11,0,11,8],[27,4,27,7],[18,5,18,7],[18,3,18,4],[19,3,19,4],[27,1,27,2],[0,1,1,9],[8,1,8,9],[6,0,6,8],[10,0,10,8],[4,0,4,8],[55,0,55,7],[54,0,54,7],[32,0,32,1],[33,0,33,1],[28,4,28,7],[53,0,53,7],[51,0,51,7],[52,0,52,7],[49,0,49,1],[42,0,42,1],[41,0,41,1],[48,0,48,1],[28,1,28,2],[66,16,66,23],[70,0,70,7],[61,0,61,7],[62,0,62,7],[63,0,63,7],[64,0,64,7],[65,0,65,7],[68,0,68,7],[56,0,56,7],[57,0,57,7],[58,0,58,7],[66,0,66,7],[66,8,66,15],[66,168,66,175],[66,192,66,199],[66,24,66,31],[66,32,66,39],[66,88,66,95],[66,120,66,127],[66,40,66,47],[66,48,66,55],[66,56,66,63],[66,64,66,71],[66,152,66,159],[66,160,66,167],[66,72,66,79],[66,80,66,87],[66,240,66,247],[66,248,66,255],[59,0,59,7],[66,208,66,215],[66,216,66,223],[66,224,66,231],[66,96,66,103],[66,104,66,111],[66,184,66,191],[66,112,66,119],[66,232,66,239],[66,176,66,183],[66,128,66,135],[66,136,66,143],[66,200,66,207],[66,144,66,151]]}
[37587,"BM - INSTRUÇÕES DE USO E PREENCHIMENTO"]
["v010"]
[]
[]
["1. Este documento somente pode ser utilizado nas versões do Excel 2003 ou superior. Não deve ser utilizado versões do BROffice. O Documento deve ser salvo SOMENTE em extensão habilitada para macros (.xls ou .xlsm). Se o documento for salvo na extensão .xlsx, o arquivo será INUTILIZADO."]
[]
["2. Para funcionamento pleno desse arquivo, a Segurança de Macros do Excel deve ser habilitada."]
[null,"2.1  Na Versão Excel 2003, selecione na Faixa de Opções: Ferramentas --> Macro --> Segurança --> Na aba Nível de Segurança selecione a Opção \"Baixo\" --> Clique em OK --> Feche e abra o Excel novamente para utilizar a Planilha."]
[null,"2.2 Na Versão Excel 2007 ou superior, selecione na Faixa de Opções: Arquivo --> Opções --> Central de Confiabilidade --> Configurações da Central de Confiabilidade --> Configurações de Macro --> Habilitar todas as Macros --> Clique em OK --> Feche e abra o excel novamente para utilizar a Planilha."]
[]
["3. O Preenchimento deve ser feito somente nas células em amarelo. As outras células são de preenchimento Automático."]
["3.1. O BM identifica automaticamente as metas e macroitens/agrupadores através da estrutura de itens indicada."]
["3.2. Caso o nível reconhecido automaticamente não esteja adequado, poderá ser realizado o ajuste manual através da lista suspensa."]
[]
["4. Ordem de Preenchimento"]
["4.1. na Aba DADOS"]
["4.1.1. Preencha no Quadro abaixo os Dados do TC/CR:"]
[]
["Nº OPERAÇÃO","Nº SICONV","GESTOR","PROGRAMA",null,"AÇÃO / MODALIDADE",null,null,"RECURSO"]
["1043.337-13/2017","849053/2019","Min. Des. Regional","Planejamento Urbano",null,"Apoio a política Nacional de Desenvolvimento Urbano",null,null,"OGU"]
[]
["PROPONENTE / TOMADOR",null,null,"MUNICÍPIO / UF","LOCALIDADE / ENDEREÇO","APELIDO DO EMPREENDIMENTO"]
["Prefeitura Municipal de Vertentes",null,null,"Vertentes/PE","Diversas Ruas do Município de Vertentes - PE","Pavimentação em Paralelepípedos"]
[]
[]
["4.1.2. Preencha no Quadro abaixo os Dados do CTEF:"]
[]
["Nº CTEF","EMPRESA EXECUTORA",null,"CNPJ","OBJETO DO CTEF",null,null,null,"INÍCIO DA OBRA"]
["187/2019","Barros Construções e Serviços LTDA",null,"13.962.001/0001-69"," Pavimentação em paralelepípedo granítico de diversas ruas do Município de Vertentes/PE.",null,null,null,"2019-09-03"]
[]
["4.1.3 Selecione abaixo, o regime de Execução do CTEF:"]
[]
["REGIME DE EXECUÇÃO"]
["Empreitada Integral"]
[]
[]
[]
[]
["4.1.3. Preencha no Quadro abaixo os Dados do Responsável Técnico pela elaboração do Boletim de Medição:"]
[]
[]
["Nome:",null,"CREA/CAU:","ART/RRT:"]
["Sofia Ximenes Lopes",null,"1816729965","PE20190347838"]
[]
[]
["4.1.4. [Opcional] Preencha no quadro abaixo se houver mais de um Responsável Técnico pela elaboração do Boletim de Medição:"]
[]
[]
["Nome:",null,"CREA/CAU:","ART/RRT:"]
[]
[]
["4.2. Os dados do orçamento contratado devem ser informados nos campos em amarelo claro da aba BM."]
["4.2.1. Para Regime de Empreitada Global ou Integral, devem ser informados somente o Item, Discriminação e Preço Total. Para Regime de Empreitada por Preço Unitário, Tarefa ou Contratação Integrada, informar o Item, Discriminação, Unidade, Quantidade e Preço Unitário."]
["4.2.2. É possível importar automaticamente o orçamento do MO27476 (Planilha Orçamentária – PO) por meio do botão Importar PO na aba Dados."]
["4.2.3. Os dados também podem ser copiados para o BM utilizando-se o recurso Colar Especial → Colar Valores"]
["4.2.4. Podem ser adicionadas ou excluídas linhas do BM por meio do botão Editar Planilha."]
["4.2.5. O orçamento está adequado para receber estrutura de itens com até 4 níveis (meta, nível 2, nível 3 e nível 4) e um nível de serviços."]
["4.2.6. Observação importante: as linhas de metas e macrosserviços (totalizadores) não devem conter dados nas colunas Unid., Qtde. e Preço Unitário."]
["4.2.7. Caso o nível reconhecido automaticamente não esteja coerente, deverá ser realizada adequação manual através da lista."]
["4.2.8. Caso não tenha sido considerado arrendondamento em algum campo do orçamento, o profissional deverá desmarcar a caixa de seleção logo acima da referente coluna (\"Quantidade\", \"Preço Unitário\" e \"Preço Total\")."]
[]
["4.3. A cada medição devem ser seguidos os seguintes passos:"]
["·         Informar o número da medição no campo Medição;"]
["·         Informar a data da medição no campo superior da respectiva coluna no quadro lateral (Medição xx);"]
["·         Para os regimes Empreitada por Preço Unitário, Tarefa, Contratação Integrada e Administração Direta: preencher a quantidade executada no período para cada serviço na coluna da respectiva medição no quadro lateral;"]
["·         Para Empreitada por Preço Global ou Integral: preencher o percentual executado no período para cada serviço na coluna da respectiva medição no quadro lateral."]
["·         Caso seja necessário um número maior de medições que o constante no quadro (24 medições) ou caso o arquivo seja utilizado para empreendimentos já em execução, deverá ser alterado o número da medição da primeira coluna, devendo ser preenchido com o número da última medição aferida e indicando a evolução acumulada até o período na respectiva coluna. As medições futuras seguirão o procedimento padrão.",null,null,null,null,null,null,null,null,null,null,null,null,null,null,null,"·         Para Empreitada por Preço Global ou Integral: preencher o percentual executado no período para cada serviço na coluna da respectiva medição no quadro lateral.",null,null,null,null,null,null,null,"·         Para Empreitada por Preço Global ou Integral: preencher o percentual executado no período para cada serviço na coluna da respectiva medição no quadro lateral.",null,null,null,null,null,null,null,"·         Para Empreitada por Preço Global ou Integral: preencher o percentual executado no período para cada serviço na coluna da respectiva medição no quadro lateral.",null,null,null,null,null,null,null,"·         Para Empreitada por Preço Global ou Integral: preencher o percentual executado no período para cada serviço na coluna da respectiva medição no quadro lateral.",null,null,null,null,null,null,null,"·         Para Empreitada por Preço Global ou Integral: preencher o percentual executado no período para cada serviço na coluna da respectiva medição no quadro lateral.",null,null,null,null,null,null,null,"·         Para Empreitada por Preço Global ou Integral: preencher o percentual executado no período para cada serviço na coluna da respectiva medição no quadro lateral.",null,null,null,null,null,null,null,"·         Para Empreitada por Preço Global ou Integral: preencher o percentual executado no período para cada serviço na coluna da respectiva medição no quadro lateral.",null,null,null,null,null,null,null,"·         Para Empreitada por Preço Global ou Integral: preencher o percentual executado no período para cada serviço na coluna da respectiva medição no quadro lateral.",null,null,null,null,null,null,null,"·         Para Empreitada por Preço Global ou Integral: preencher o percentual executado no período para cada serviço na coluna da respectiva medição no quadro lateral.",null,null,null,null,null,null,null,"·         Para Empreitada por Preço Global ou Integral: preencher o percentual executado no período para cada serviço na coluna da respectiva medição no quadro lateral.",null,null,null,null,null,null,null,"·         Para Empreitada por Preço Global ou Integral: preencher o percentual executado no período para cada serviço na coluna da respectiva medição no quadro lateral.",null,null,null,null,null,null,null,"·         Para Empreitada por Preço Global ou Integral: preencher o percentual executado no período para cada serviço na coluna da respectiva medição no quadro lateral.",null,null,null,null,null,null,null,"·         Para Empreitada por Preço Global ou Integral: preencher o percentual executado no período para cada serviço na coluna da respectiva medição no quadro lateral.",null,null,null,null,null,null,null,"·         Para Empreitada por Preço Global ou Integral: preencher o percentual executado no período para cada serviço na coluna da respectiva medição no quadro lateral.",null,null,null,null,null,null,null,"·         Para Empreitada por Preço Global ou Integral: preencher o percentual executado no período para cada serviço na coluna da respectiva medição no quadro lateral.",null,null,null,null,null,null,null,"·         Para Empreitada por Preço Global ou Integral: preencher o percentual executado no período para cada serviço na coluna da respectiva medição no quadro lateral.",null,null,null,null,null,null,null,"·         Para Empreitada por Preço Global ou Integral: preencher o percentual executado no período para cada serviço na coluna da respectiva medição no quadro lateral.",null,null,null,null,null,null,null,"·         Para Empreitada por Preço Global ou Integral: preencher o percentual executado no período para cada serviço na coluna da respectiva medição no quadro lateral.",null,null,null,null,null,null,null,"·         Para Empreitada por Preço Global ou Integral: preencher o percentual executado no período para cada serviço na coluna da respectiva medição no quadro lateral.",null,null,null,null,null,null,null,"·         Para Empreitada por Preço Global ou Integral: preencher o percentual executado no período para cada serviço na coluna da respectiva medição no quadro lateral.",null,null,null,null,null,null,null,"·         Para Empreitada por Preço Global ou Integral: preencher o percentual executado no período para cada serviço na coluna da respectiva medição no quadro lateral.",null,null,null,null,null,null,null,"·         Para Empreitada por Preço Global ou Integral: preencher o percentual executado no período para cada serviço na coluna da respectiva medição no quadro lateral.",null,null,null,null,null,null,null,"·         Para Empreitada por Preço Global ou Integral: preencher o percentual executado no período para cada serviço na coluna da respectiva medição no quadro lateral.",null,null,null,null,null,null,null,"·         Para Empreitada por Preço Global ou Integral: preencher o percentual executado no período para cada serviço na coluna da respectiva medição no quadro lateral.",null,null,null,null,null,null,null,"·         Para Empreitada por Preço Global ou Integral: preencher o percentual executado no período para cada serviço na coluna da respectiva medição no quadro lateral.",null,null,null,null,null,null,null,"·         Para Empreitada por Preço Global ou Integral: preencher o percentual executado no período para cada serviço na coluna da respectiva medição no quadro lateral.",null,null,null,null,null,null,null,"·         Para Empreitada por Preço Global ou Integral: preencher o percentual executado no período para cada serviço na coluna da respectiva medição no quadro lateral.",null,null,null,null,null,null,null,"·         Para Empreitada por Preço Global ou Integral: preencher o percentual executado no período para cada serviço na coluna da respectiva medição no quadro lateral.",null,null,null,null,null,null,null,"·         Para Empreitada por Preço Global ou Integral: preencher o percentual executado no período para cada serviço na coluna da respectiva medição no quadro lateral.",null,null,null,null,null,null,null,"·         Para Empreitada por Preço Global ou Integral: preencher o percentual executado no período para cada serviço na coluna da respectiva medição no quadro lateral."]
[]
["4.4. Nas medições em que não houver evolução de determinado serviço, é facultada a manutenção do campo vazio ou preechimento com 0 (zero)."]
[]
["4.5. Para cada medição (conforme nº informado no campo Medição), os valores da coluna correspondente à medição em questão são apresentados no BM, que calcula os demais dados de evolução física (qtde ou %) e evolução financeira (R$)."]

{"sheet":"BM","index":1,"n_rows":133,"n_cols":81,"rows_kept":133,"cut":false,"hidden":false,"merged":[[121,57,121,58],[121,60,121,61],[121,62,121,64],[121,65,121,68],[121,69,121,72],[121,73,121,78],[120,57,120,58],[120,60,120,61],[120,62,120,64],[120,65,120,68],[120,69,120,72],[120,73,120,78],[119,57,119,58],[119,60,119,61],[119,62,119,64],[119,65,119,68],[119,69,119,72],[119,73,119,78],[118,57,118,58],[118,60,118,61],[118,62,118,64],[118,65,118,68],[118,69,118,72],[118,73,118,78],[117,57,117,58],[117,60,117,61],[117,62,117,64],[117,65,117,68],[117,69,117,72],[117,73,117,78],[116,57,116,58],[116,60,116,61],[116,62,116,64],[116,65,116,68],[116,69,116,72],[116,73,116,78],[115,57,115,58],[115,60,115,61],[115,62,115,64],[115,65,115,68],[115,69,115,72],[115,73,115,78],[114,57,114,58],[114,60,114,61],[114,62,114,64],[114,65,114,68],[114,69,114,72],[114,73,114,78],[113,57,113,58],[113,60,113,61],[113,62,113,64],[113,65,113,68],[113,69,113,72],[113,73,113,78],[112,57,112,58],[112,60,112,61],[112,62,112,64],[112,65,112,68],[112,69,112,72],[112,73,112,78],[111,57,111,58],[111,60,111,61],[111,62,111,64],[111,65,111,68],[111,69,111,72],[111,73,111,78],[110,57,110,58],[110,60,110,61],[110,62,110,64],[110,65,110,68],[110,69,110,72],[110,73,110,78],[109,57,109,58],[109,60,109,61],[109,62,109,64],[109,65,109,68],[109,69,109,72],[109,73,109,78],[108,57,108,58],[108,60,108,61],[108,62,108,64],[108,65,108,68],[108,69,108,72],[108,73,108,78],[107,57,107,58],[107,60,107,61],[107,62,107,64],[107,65,107,68],[107,69,107,72],[107,73,107,78],[106,57,106,58],[106,60,106,61],[106,62,106,64],[106,65,106,68],[106,69,106,72],[106,73,106,78],[105,57,105,58],[105,60,105,61],[105,62,105,64],[105,65,105,68],[105,69,105,72],[105,73,105,78],[104,57,104,58],[104,60,104,61],[104,62,104,64],[104,65,104,68],[104,69,104,72],[104,73,104,78],[103,57,103,58],[103,60,103,61],[103,62,103,64],[103,65,103,68],[103,69,103,72],[103,73,103,78],[102,57,102,58],[102,60,102,61],[102,62,102,64],[102,65,102,68],[102,69,102,72],[102,73,102,78],[101,57,101,58],[101,60,101,61],[101,62,101,64],[101,65,101,68],[101,69,101,72],[101,73,101,78],[100,57,100,58],[100,60,100,61],[100,62,100,64],[100,65,100,68],[100,69,100,72],[100,73,100,78],[99,57,99,58],[99,60,99,61],[99,62,99,64],[99,65,99,68],[99,69,99,72],[99,73,99,78],[98,57,98,58],[98,60,98,61],[98,62,98,64],[98,65,98,68],[98,69,98,72],[98,73,98,78],[97,57,97,58],[97,60,97,61],[97,62,97,64],[97,65,97,68],[97,69,97,72],[97,73,97,78],[96,57,96,58],[96,60,96,61],[96,62,96,64],[96,65,96,68],[96,69,96,72],[96,73,96,78],[95,57,95,58],[95,60,95,61],[95,62,95,64],[95,65,95,68],[95,69,95,72],[95,73,95,78],[94,57,94,58],[94,60,94,61],[94,62,94,64],[94,65,94,68],[94,69,94,72],[94,73,94,78],[93,57,93,58],[93,60,93,61],[93,62,93,64],[93,65,93,68],[93,69,93,72],[93,73,93,78],[92,57,92,58],[92,60,92,61],[92,62,92,64],[92,65,92,68],[92,69,92,72],[92,73,92,78],[91,57,91,58],[91,60,91,61],[91,62,91,64],[91,65,91,68],[91,69,91,72],[91,73,91,78],[90,57,90,58],[90,60,90,61],[90,62,90,64],[90,65,90,68],[90,69,90,72],[90,73,90,78],[89,57,89,58],[89,60,89,61],[89,62,89,64],[89,65,89,68],[89,69,89,72],[89,73,89,78],[88,57,88,58],[88,60,88,61],[88,62,88,64],[88,65,88,68],[88,69,88,72],[88,73,88,78],[87,57,87,58],[87,60,87,61],[87,62,87,64],[87,65,87,68],[87,69,87,72],[87,73,87,78],[86,57,86,58],[86,60,86,61],[86,62,86,64],[86,65,86,68],[86,69,86,72],[86,73,86,78],[85,57,85,58],[85,60,85,61],[85,62,85,64],[85,65,85,68],[85,69,85,72],[85,73,85,78],[84,57,84,58],[84,60,84,61],[84,62,84,64],[84,65,84,68],[84,69,84,72],[84,73,84,78],[83,57,83,58],[83,60,83,61],[83,62,83,64],[83,65,83,68],[83,69,83,72],[83,73,83,78],[82,57,82,58],[82,60,82,61],[82,62,82,64],[82,65,82,68],[82,69,82,72],[82,73,82,78],[81,57,81,58],[81,60,81,61],[81,62,81,64],[81,65,81,68],[81,69,81,72],[81,73,81,78],[80,57,80,58],[80,60,80,61],[80,62,80,64],[80,65,80,68],[80,69,80,72],[80,73,80,78],[79,57,79,58],[79,60,79,61],[79,62,79,64],[79,65,79,68],[79,69,79,72],[79,73,79,78],[78,57,78,58],[78,60,78,61],[78,62,78,64],[78,65,78,68],[78,69,78,72],[78,73,78,78],[77,57,77,58],[77,60,77,61],[77,62,77,64],[77,65,77,68],[77,69,77,72],[77,73,77,78],[76,57,76,58],[76,60,76,61],[76,62,76,64],[76,65,76,68],[76,69,76,72],[76,73,76,78],[75,57,75,58],[75,60,75,61],[75,62,75,64],[75,65,75,68],[75,69,75,72],[75,73,75,78],[74,57,74,58],[74,60,74,61],[74,62,74,64],[74,65,74,68],[74,69,74,72],[74,73,74,78],[73,57,73,58],[73,60,73,61],[73,62,73,64],[73,65,73,68],[73,69,73,72],[73,73,73,78],[72,57,72,58],[72,60,72,61],[72,62,72,64],[72,65,72,68],[72,69,72,72],[72,73,72,78],[71,57,71,58],[71,60,71,61],[71,62,71,64],[71,65,71,68],[71,69,71,72],[71,73,71,78],[70,57,70,58],[70,60,70,61],[70,62,70,64],[70,65,70,68],[70,69,70,72],[70,73,70,78],[69,57,69,58],[69,60,69,61],[69,62,69,64],[69,65,69,68],[69,69,69,72],[69,73,69,78],[68,57,68,58],[68,60,68,61],[68,62,68,64],[68,65,68,68],[68,69,68,72],[68,73,68,78],[67,57,67,58],[67,60,67,61],[67,62,67,64],[67,65,67,68],[67,69,67,72],[67,73,67,78],[66,57,66,58],[66,60,66,61],[66,62,66,64],[66,65,66,68],[66,69,66,72],[66,73,66,78],[65,57,65,58],[65,60,65,61],[65,62,65,64],[65,65,65,68],[65,69,65,72],[65,73,65,78],[64,57,64,58],[64,60,64,61],[64,62,64,64],[64,65,64,68],[64,69,64,72],[64,73,64,78],[63,57,63,58],[63,60,63,61],[63,62,63,64],[63,65,63,68],[63,69,63,72],[63,73,63,78],[62,57,62,58],[62,60,62,61],[62,62,62,64],[62,65,62,68],[62,69,62,72],[62,73,62,78],[61,57,61,58],[61,60,61,61],[61,62,61,64],[61,65,61,68],[61,69,61,72],[61,73,61,78],[60,57,60,58],[60,60,60,61],[60,62,60,64],[60,65,60,68],[60,69,60,72],[60,73,60,78],[59,57,59,58],[59,60,59,61],[59,62,59,64],[59,65,59,68],[59,69,59,72],[59,73,59,78],[58,57,58,58],[58,60,58,61],[58,62,58,64],[58,65,58,68],[58,69,58,72],[58,73,58,78],[57,57,57,58],[57,60,57,61],[57,62,57,64],[57,65,57,68],[57,69,57,72],[57,73,57,78],[56,57,56,58],[56,60,56,61],[56,62,56,64],[56,65,56,68],[56,69,56,72],[56,73,56,78],[55,57,55,58],[55,60,55,61],[55,62,55,64],[55,65,55,68],[55,69,55,72],[55,73,55,78],[54,57,54,58],[54,60,54,61],[54,62,54,64],[54,65,54,68],[54,69,54,72],[54,73,54,78],[53,57,53,58],[53,60,53,61],[53,62,53,64],[53,65,53,68],[53,69,53,72],[53,73,53,78],[52,57,52,58],[52,60,52,61],[52,62,52,64],[52,65,52,68],[52,69,52,72],[52,73,52,78],[51,57,51,58],[51,60,51,61],[51,62,51,64],[51,65,51,68],[51,69,51,72],[51,73,51,78],[50,57,50,58],[50,60,50,61],[50,62,50,64],[50,65,50,68],[50,69,50,72],[50,73,50,78],[49,57,49,58],[49,60,49,61],[49,62,49,64],[49,65,49,68],[49,69,49,72],[49,73,49,78],[48,57,48,58],[48,60,48,61],[48,62,48,64],[48,65,48,68],[48,69,48,72],[48,73,48,78],[47,57,47,58],[47,60,47,61],[47,62,47,64],[47,65,47,68],[47,69,47,72],[47,73,47,78],[46,57,46,58],[46,60,46,61],[46,62,46,64],[46,65,46,68],[46,69,46,72],[46,73,46,78],[45,57,45,58],[45,60,45,61],[45,62,45,64],[45,65,45,68],[45,69,45,72],[45,73,45,78],[44,57,44,58],[44,60,44,61],[44,62,44,64],[44,65,44,68],[44,69,44,72],[44,73,44,78],[43,57,43,58],[43,60,43,61],[43,62,43,64],[43,65,43,68],[43,69,43,72],[43,73,43,78],[42,57,42,58],[42,60,42,61],[42,62,42,64],[42,65,42,68],[42,69,42,72],[42,73,42,78],[41,57,41,58],[41,60,41,61],[41,62,41,64],[41,65,41,68],[41,69,41,72],[41,73,41,78],[40,57,40,58],[40,60,40,61],[40,62,40,64],[40,65,40,68],[40,69,40,72],[40,73,40,78],[39,62,39,64],[39,65,39,68],[39,69,39,72],[39,73,39,78],[38,57,38,58],[38,60,38,61],[38,62,38,64],[38,65,38,68],[38,69,38,72],[38,73,38,78],[23,62,23,64],[28,65,28,68],[19,62,19,64],[21,60,21,61],[20,65,20,68],[22,65,22,68],[24,65,24,68],[25,65,25,68],[23,65,23,68],[26,65,26,68],[27,65,27,68],[28,62,28,64],[15,69,15,72],[15,73,15,78],[18,73,18,78],[16,65,16,68],[16,73,16,78],[21,57,21,58],[20,57,20,58],[16,62,16,64],[18,60,18,61],[17,57,17,58],[18,69,18,72],[21,65,21,68],[20,69,20,72],[21,69,21,72],[17,60,17,61],[16,60,16,61],[21,62,21,64],[18,57,18,58],[20,62,20,64],[20,60,20,61],[15,57,15,58],[15,60,15,61],[15,62,15,64],[15,65,15,68],[29,73,29,78],[30,57,30,58],[30,60,30,61],[30,62,30,64],[30,65,30,68],[31,65,31,68],[30,69,30,72],[30,73,30,78],[29,57,29,58],[29,60,29,61],[29,62,29,64],[31,69,31,72],[31,62,31,64],[29,69,29,72],[29,65,29,68],[122,73,122,78],[35,57,35,58],[35,60,35,61],[35,62,35,64],[35,73,35,78],[35,65,35,68],[122,62,122,64],[122,57,122,58],[32,69,32,72],[32,73,32,78],[37,57,37,58],[37,60,37,61],[37,62,37,64],[37,65,37,68],[37,69,37,72],[37,73,37,78],[36,57,36,58],[36,60,36,61],[36,62,36,64],[36,65,36,68],[36,69,36,72],[36,73,36,78],[39,57,39,58],[39,60,39,61],[32,60,32,61],[32,57,32,58],[32,65,32,68],[14,57,14,58],[17,62,17,64],[14,60,14,61],[31,57,31,58],[31,60,31,61],[27,60,27,61],[25,60,25,61],[24,60,24,61],[22,57,22,58],[23,57,23,58],[26,57,26,58],[27,62,27,64],[28,57,28,58],[24,57,24,58],[23,60,23,61],[25,62,25,64],[26,60,26,61],[25,57,25,58],[27,57,27,58],[28,60,28,61],[22,60,22,61],[4,12,4,15],[12,57,12,58],[13,57,13,58],[13,28,13,33],[11,53,11,55],[13,40,13,45],[4,23,5,23],[10,42,10,43],[11,50,11,52],[10,30,10,31],[11,21,11,23],[9,20,9,21],[11,11,11,12],[13,11,13,13],[13,14,13,15],[10,14,10,17],[11,18,11,20],[125,57,125,78],[21,73,21,78],[18,65,18,68],[35,69,35,72],[33,69,33,72],[122,60,122,61],[34,57,34,58],[34,60,34,61],[32,62,32,64],[19,57,19,58],[19,60,19,61],[18,62,18,64],[22,62,22,64],[26,62,26,64],[24,62,24,64],[34,73,34,78],[33,57,33,58],[33,60,33,61],[33,62,33,64],[31,73,31,78],[33,65,33,68],[34,65,34,68],[122,65,122,68],[122,69,122,72],[132,17,132,18],[132,22,132,23],[130,54,130,55],[130,17,130,18],[131,54,131,55],[130,22,130,23],[131,17,131,18],[130,11,130,12],[125,12,125,23],[132,54,132,55],[131,22,131,23],[128,11,128,23],[127,12,127,17],[129,11,129,12],[0,57,0,58],[12,60,12,61],[14,62,14,64],[13,60,13,61],[0,60,0,61],[0,62,0,64],[13,62,13,64],[11,57,11,59],[12,65,12,68],[13,65,13,68],[14,65,14,68],[0,65,0,68],[0,73,0,78],[12,69,12,72],[12,73,12,78],[13,69,13,72],[13,73,13,78],[0,69,0,72],[20,73,20,78],[28,73,28,78],[28,69,28,72],[26,73,26,78],[27,69,27,72],[24,69,24,72],[23,69,23,72],[24,73,24,78],[19,73,19,78],[19,69,19,72],[17,73,17,78],[17,69,17,72],[14,69,14,72],[14,73,14,78],[22,73,22,78],[23,73,23,78],[22,69,22,72],[16,69,16,72],[132,65,132,74],[10,57,10,59],[25,73,25,78],[27,73,27,78],[25,69,25,72],[123,69,123,72],[123,65,123,68],[26,69,26,72],[16,57,16,58],[12,62,12,64],[132,60,132,64],[19,65,19,68],[17,65,17,68],[131,60,131,64],[130,60,130,64],[130,65,130,74],[131,65,131,74],[123,73,123,78],[33,73,33,78],[34,62,34,64],[34,69,34,72],[123,62,123,64],[123,60,123,61],[123,57,123,58]]}
[{"$f":"CHOOSE(1+LOG(1+2*(K1=\"Meta\")+4*(K1=\"Nível 2\")+8*(K1=\"Nível 3\")+16*(K1=\"Nível 4\")+32*(K1=\"Serviço\"),2),0,1,2,3,4,\"S\")","v":"S"},{"$f":"IF(OR(A1=\"S\",A1=0),0,IF(ISERROR(I1),H1,SMALL(H1:I1,1)))","v":0},{"$f":"IF($A1=1,OFFSET(C1,-1,0)+1,OFFSET(C1,-1,0))","v":{"$error":"#REF!"}},{"$f":"IF($A1=1,0,IF($A1=2,OFFSET(D1,-1,0)+1,OFFSET(D1,-1,0)))","v":{"$error":"#REF!"}},{"$f":"IF(AND($A1<=2,$A1<>0),0,IF($A1=3,OFFSET(E1,-1,0)+1,OFFSET(E1,-1,0)))","v":{"$error":"#REF!"}},{"$f":"IF(AND($A1<=3,$A1<>0),0,IF($A1=4,OFFSET(F1,-1,0)+1,OFFSET(F1,-1,0)))","v":{"$error":"#REF!"}},{"$f":"IF(AND($A1<=4,$A1<>0),0,IF($A1=\"S\",OFFSET(G1,-1,0)+1,OFFSET(G1,-1,0)))","v":{"$error":"#REF!"}},{"$f":"IF(OR($A1=\"S\",$A1=0),0,MATCH(0,OFFSET($B1,1,$A1,ROW($A$124)-ROW($A1)),0))","v":0},{"$f":"IF(OR($A1=\"S\",$A1=0),0,MATCH(OFFSET($B1,0,$A1)+1,OFFSET($B1,1,$A1,ROW($A$124)-ROW($A1)),0))","v":0},{"$f":"LEN(LEFT($L1,LEN($L1)-1*(RIGHT($L1,1)=\".\")))-LEN(SUBSTITUTE(LEFT($L1,LEN($L1)-1*(RIGHT($L1,1)=\".\")),\".\",\"\"))","v":0},{"$f":"CHOOSE(1+LOG(1+2*($J1=3)+4*($J1=2)+8*($J1=1)+16*(AND($L1<>\"\",$L1<>0,$J1=0))+32*OR($N1<>\"\",RegimeExecucao=\"Global\",AND($L1=\"\",$M1=\"\",$N1=\"\")),2),\"\",\"Nível 4\",\"Nível 3\",\"Nível 2\",\"Meta\",\"Serviço\")","v":"Serviço"},null,null,null,null,null,{"$f":"IF($A1=\"S\",0,$R1)","v":0},{"$f":"IF($A1=\"S\",IF(RegimeExecucao=\"Global\",ROUND($Q1,arredtot),total),IF($A1=0,0,ROUND(SomaAgrup,arredtot)))","v":0},{"$f":"IF(AND($A1=\"S\",COUNTIF($Z$13:$AW$13,mediçao-1)>0),SUM(OFFSET($Z1,0,0,1,MATCH(mediçao-1,$Z$13:$AW$13,0))),IF(AND(RegimeExecucao=\"Global\",$R1>0,COUNTIF($Z$13:$AW$13,mediçao-1)>0),V1/$R1*100,0))","v":0},{"$f":"U1-S1","v":0},{"$f":"IF(AND($A1=\"S\",COUNTIF($Z$13:$AW$13,mediçao)>0),SUM(OFFSET($Z1,0,0,1,MATCH(mediçao,$Z$13:$AW$13,0))),IF(AND(RegimeExecucao=\"Global\",$R1>0,COUNTIF($Z$13:$AW$13,mediçao)>0),X1/$R1*100,0))","v":0},{"$f":"IF($A1=\"S\",VTOTAL,IF($A1=0,0,ROUND(SomaAgrup,arredtot)))","v":0},{"$f":"X1-V1","v":0},{"$f":"IF($A1=\"S\",VTOTAL,IF($A1=0,0,ROUND(SomaAgrup,arredtot)))","v":0},null,null,null,null,null,null,null,null,null,null,null,null,null,null,null,null,null,null,null,null,null,null,null,null,null,null,0,{"$f":"BA1-AY1","v":0},0,{"$f":"IF($A1=\"S\",VTOTAL,IF($A1=0,0,ROUND(SomaAgrup,arredtot)))","v":0},{"$f":"BD1-BB1","v":0},{"$f":"IF($A1=\"S\",VTOTAL,IF($A1=0,0,ROUND(SomaAgrup,arredtot)))","v":0},null,{"$f":"IF(BK1>0,L1,\"\")","v":0},null,{"$f":"IF(BK1>0,M1,\"\")","v":0},{"$f":"IF(BK1>0,N1,\"\")","v":0},null,{"$f":"IF(BR1>0,CHOOSE(MATCH(RegimeExecucao,{\"Unitário\",\"Global\"},0),IF($A1=\"S\",BR1/BN1,\"\"),(BR1/BN1)*100),\"\")","v":""},null,null,{"$f":"IF(BR1>0,CHOOSE(MATCH(RegimeExecucao,{\"Unitário\",\"Global\"},0),IF($A1=\"S\",ROUND(P1,arredunit),\"\"),ROUND(R1,arredtot)),\"\")","v":""},null,null,null,{"$f":"$X1-$BD1","v":0}]
[]
[null,null,"Meta","Nível 2","Nível 3","Nível 4","Serviço",null,null,null,null,null,null,null,true,true,null,true,true]
[]
[null,null,null,null,null,null,null,null,null,null,null,null,{"$f":"IF(CAIXA.modo,\"BA - BOLETIM DE AFERIÇÃO CAIXA\",\"BM - BOLETIM DE MEDIÇÃO\")","v":"BM - BOLETIM DE MEDIÇÃO"},null,null,null,null,null,null,null,null,null,null,"Grau de Sigilo\n#PUBLICO",null,null,null,null,null,null,null,null,null,null,null,null,null,null,null,null,null,null,null,null,null,null,null,null,null,null,null,null,null,null,null,null,null,null,null,null,null,null,null,null,null,null,null,null,null,null,null,null,null,null,null,null,null,null,null,null,"Motivos das glosas"]
[null,null,null,null,null,null,null,null,null,null,null,null,{"$f":"IF(Import.RegimeExecução=\"\",\"PREENCHA O REGIME DE EXECUÇÃO NA ABA DADOS\",DADOS!A34)","v":"Empreitada Integral"},null,null,null,null,null,null,null,null,null,null,null,null,null,null,null,null,null,null,null,null,null,null,null,null,null,null,null,null,null,null,null,null,null,null,null,null,null,null,null,null,null,null,null,null,null,null,null,null,null,null,null,null,null,null,null,null,null,null,null,null,null,null,null,null,null,null,null,"não executado"]
[null,null,null,null,null,null,null,null,null,null,null,null,null,null,null,null,null,null,null,null,null,null,null,null,null,null,null,null,null,null,null,null,null,null,null,null,null,null,null,null,null,null,null,null,null,null,null,null,null,null,null,null,null,null,null,null,null,null,null,null,null,null,null,null,null,null,null,null,null,null,null,null,null,null,null,null,null,null,null,null,"não previsto no orçamento"]
[null,null,null,null,null,null,null,null,null,null,null,null,null,null,null,null,null,null,null,null,null,null,null,null,null,{"$f":"numLinhas","v":109},null,null,null,null,null,null,null,null,null,null,null,null,null,null,null,null,null,null,null,null,null,null,null,null,null,null,null,null,null,null,null,null,null,null,null,null,null,null,null,null,null,null,null,null,null,null,null,null,null,null,null,null,null,null,"material inadequado"]
[null,null,null,null,null,null,null,null,null,null,null,null,null,null,null,null,null,null,null,null,null,null,null,null,null,1,2,3,4,5,6,7,8,9,10,11,12,13,14,15,16,17,18,19,20,21,22,23,24,null,null,null,null,null,null,null,null,null,null,null,null,null,null,null,null,null,null,null,null,null,null,null,null,null,null,null,null,null,null,null,"desacordo com os projetos"]
[null,null,null,null,null,null,null,null,null,null,null,{"$f":"\"Realizado Acumulado: \"&TEXT(ROUND(IF(CAIXA.modo,$BD$14,$X$14)/($R$14+10^-12),4),\"0,00%\")","v":"Realizado Acumulado: 20,62%"},null,null,null,null,null,null,null,"Período:",{"$f":"IF(INDEX($Z$12:$AW$12,MATCH(mediçao,$Z$13:$AW$13,0))=\"\",\"SEM DATA\",TEXT(IF(mediçao>1,INDEX($Z$12:$AW$12,MATCH(mediçao-1,$Z$13:$AW$13,0)),dataInicioObra),\"dd/mm/aaaa\")&\" a \"&TEXT(INDEX($Z$12:$AW$12,MATCH(mediçao,$Z$13:$AW$13,0)),\"dd/mm/aaaa\"))","v":"16/03/2020 a 24/02/2021"},null,"Medição:",2,null,null,null,null,null,null,null,null,null,null,null,null,null,null,null,null,null,null,null,null,null,null,null,null,null,null,null,null,null,null,"Medição:",{"$f":"mediçao","v":2},null,null,null,null,null,null,null,null,null,null,null,null,null,null,null,null,null,null,null,null,null,null,null,null,"não atende especificações"]
[null,null,null,null,null,null,null,null,{"$f":"RegimeExecucao","v":"Global"},null,null,{"$f":"\"Número de linhas do BM: \"&numLinhas","v":"Número de linhas do BM: 109"},null,null,null,null,null,null,null,null,null,null,null,null,null,null,null,null,null,null,"Datas das Medições",null,null,null,null,null,null,null,null,null,null,null,"Datas das Medições",null,null,null,null,null,null,null,null,null,null,null,null,null,null,"Anexo",null,null,null,null,null,null,null,null,null,null,null,null,null,null,null,null,null,null,null,null,null,null,"qualidade insatisfatória"]
[null,null,null,null,null,null,null,null,null,null,null,"Orçamento Contratado",null,null,null,null,null,null,{"$f":"\"Evolução Física \"&CHOOSE(MATCH(RegimeExecucao,{\"Unitário\",\"Global\"},0),\"(Qtde.)\",\"(%)\")","v":"Evolução Física (%)"},null,null,"Evolução Financeira (R$)",null,null,null,"2020-03-16","2021-02-24",null,null,null,null,null,null,null,null,null,null,null,null,null,null,null,null,null,null,null,null,null,null,null,{"$f":"\"Aferição Física \"&CHOOSE(MATCH(RegimeExecucao,{\"Unitário\",\"Global\"},0),\"(Qtde.)\",\"(%)\")","v":"Aferição Física (%)"},null,null,"Aferição Financeira (R$)",null,null,null,"Quadro de Glosas",null,null,null,null,null,null,null,null,null,null,null,null,null,null,null,null,null,null,null,null,null,null,"ver observações abaixo"]
["Nível","Altura","n1","n2","n3","n4","n5","Czero","Cnível",null,"Nível","Item","Discriminação","Unid.","Qtde.","Preço Unitário (R$)","Preço Total\n(R$)","Preço Total\n(R$)","Acum. Anterior","Período","Acum. Incluindo Período","Acum. Anterior","Período","Acum. Incluindo Período",null,1,{"$f":"OFFSET(AA13,0,-1)+1","v":2},{"$f":"OFFSET(AB13,0,-1)+1","v":3},4,5,6,7,8,9,10,11,12,13,14,15,16,17,18,19,20,21,22,23,24,null,"Acum. Anterior","Período","Acum. Incluindo Período","Acum. Anterior","Período","Acum. Incluindo Período",null,"Item orçam.",null,{"$f":"M13","v":"Discriminação"},"Unid.",null,{"$f":"CHOOSE(MATCH(RegimeExecucao,{\"Unitário\",\"Global\"},0),\"Quant. Glosada (unid)\",\"Percentual Glosado (%)\")","v":"Percentual Glosado (%)"},null,null,{"$f":"CHOOSE(MATCH(RegimeExecucao,{\"Unitário\",\"Global\"},0),\"Preço Unitário (R$)\",\"Valor Total do Item (R$)\")","v":"Valor Total do Item (R$)"},null,null,null,"Valor Total Glosado (R$)",null,null,null,"Motivo da Glosa"]
[null,{"$f":"COUNTA(OFFSET(B14,1,0):B$137)","v":110},null,null,null,null,null,null,null,null,null,null,null,null,"TOTAL:",null,{"$f":"$R14","v":1240000.0300000003},{"$f":"SUMIF(OFFSET($K14,1,0):$K124,\"serviço\",OFFSET(R14,1,0):R$124)","v":1240000.0300000003},{"$f":"IF($V$14=0,0,IF(RegimeExecucao=\"Global\",V14/$R14*100,0))","v":7.8589481969609283},{"$f":"U14-S14","v":12.760690820305868},{"$f":"IF($X$14=0,0,IF(RegimeExecucao=\"Global\",X14/$R14*100,0))","v":20.619639017266795},{"$f":"SUMIF(OFFSET(K14,1,0):K124,\"Serviço\",OFFSET(V14,1,0):V$124)","v":97450.959999999992},{"$f":"X14-V14","v":158232.57},{"$f":"SUMIF(OFFSET(K14,1,0):K124,\"Serviço\",OFFSET(X14,1,0):X$124)","v":255683.53},null,null,null,null,{"$f":"\"Preencher abaixo com a \"&CHOOSE(MATCH(RegimeExecucao,{\"Unitário\",\"Global\"},0),\"QUANTIDADE\",\"PERCENTAGEM\")&\" executada no PERÍODO\"","v":"Preencher abaixo com a PERCENTAGEM executada no PERÍODO"},null,null,null,null,null,null,null,null,null,null,null,{"$f":"\"Preencher abaixo com a \"&CHOOSE(MATCH(RegimeExecucao,{\"Unitário\",\"Global\"},0),\"QUANTIDADE\",\"PERCENTAGEM\")&\" executada no PERÍODO\"","v":"Preencher abaixo com a PERCENTAGEM executada no PERÍODO"},null,null,null,null,null,null,null,null,null,{"$f":"IF(BB14=0,0,IF(RegimeExecucao=\"Global\",BB14/$R14*100,0))","v":0},{"$f":"BA14-AY14","v":0},{"$f":"IF(BD14=0,0,IF(RegimeExecucao=\"Global\",BD14/$R14*100,0))","v":0},{"$f":"SUMIF(OFFSET(K14,1,0):K124,\"serviço\",OFFSET(BB14,1,0):BB$124)","v":0},{"$f":"BD14-BB14","v":0},{"$f":"SUMIF(OFFSET($K14,1,0):K124,\"serviço\",OFFSET(BD14,1,0):BD$124)","v":0},null,null,null,"TOTAL:",null,null,{"$f":"IF(BR14=0,0,IF(RegimeExecucao=\"Global\",BR14/$R14*100,0))","v":20.619639017266795},{"$f":"IF(BO14=0,0,IF(RegimeExecucao=\"Global\",BO14/$R14*100,0))","v":0},{"$f":"IF(BP14=0,0,IF(RegimeExecucao=\"Global\",BP14/$R14*100,0))","v":0},{"$f":"IF(AND($A14=\"S\",BR14>0),CHOOSE(MATCH(RegimeExecucao,{\"Unitário\",\"Global\"},0),ROUND(P14,arredunit),ROUND(R14,arredtot)),\"\")","v":""},null,null,null,{"$f":"$X14-$BD14","v":255683.53}]
[{"$f":"CHOOSE(1+LOG(1+2*(K15=\"Meta\")+4*(K15=\"Nível 2\")+8*(K15=\"Nível 3\")+16*(K15=\"Nível 4\")+32*(K15=\"Serviço\"),2),0,1,2,3,4,\"S\")","v":1},{"$f":"IF(OR(A15=\"S\",A15=0),0,IF(ISERROR(I15),H15,SMALL(H15:I15,1)))","v":109},{"$f":"IF($A15=1,OFFSET(C15,-1,0)+1,OFFSET(C15,-1,0))","v":1},{"$f":"IF($A15=1,0,IF($A15=2,OFFSET(D15,-1,0)+1,OFFSET(D15,-1,0)))","v":0},{"$f":"IF(AND($A15<=2,$A15<>0),0,IF($A15=3,OFFSET(E15,-1,0)+1,OFFSET(E15,-1,0)))","v":0},{"$f":"IF(AND($A15<=3,$A15<>0),0,IF($A15=4,OFFSET(F15,-1,0)+1,OFFSET(F15,-1,0)))","v":0},{"$f":"IF(AND($A15<=4,$A15<>0),0,IF($A15=\"S\",OFFSET(G15,-1,0)+1,OFFSET(G15,-1,0)))","v":0},{"$f":"IF(OR($A15=\"S\",$A15=0),0,MATCH(0,OFFSET($B15,1,$A15,ROW($A$124)-ROW($A15)),0))","v":109},{"$f":"IF(OR($A15=\"S\",$A15=0),0,MATCH(OFFSET($B15,0,$A15)+1,OFFSET($B15,1,$A15,ROW($A$124)-ROW($A15)),0))","v":{"$error":"#N/A"}},{"$f":"LEN(LEFT($L15,LEN($L15)-1*(RIGHT($L15,1)=\".\")))-LEN(SUBSTITUTE(LEFT($L15,LEN($L15)-1*(RIGHT($L15,1)=\".\")),\".\",\"\"))","v":0},"Meta","1.","PAVIMENTACAO DE DIVERSAS RUAS DO MUNICÍPIO DE VERTENTES-PE","",0,0,1240000.03,{"$f":"IF($A15=\"S\",IF(RegimeExecucao=\"Global\",ROUND($Q15,arredtot),total),IF($A15=0,0,ROUND(SomaAgrup,arredtot)))","v":1240000.03},{"$f":"IF(AND($A15=\"S\",COUNTIF($Z$13:$AW$13,mediçao-1)>0),SUM(OFFSET($Z15,0,0,1,MATCH(mediçao-1,$Z$13:$AW$13,0))),IF(AND(RegimeExecucao=\"Global\",$R15>0,COUNTIF($Z$13:$AW$13,mediçao-1)>0),V15/$R15*100,0))","v":7.8589481969609309},{"$f":"U15-S15","v":12.760690820305864},{"$f":"IF(AND($A15=\"S\",COUNTIF($Z$13:$AW$13,mediçao)>0),SUM(OFFSET($Z15,0,0,1,MATCH(mediçao,$Z$13:$AW$13,0))),IF(AND(RegimeExecucao=\"Global\",$R15>0,COUNTIF($Z$13:$AW$13,mediçao)>0),X15/$R15*100,0))","v":20.619639017266795},{"$f":"IF($A15=\"S\",VTOTAL,IF($A15=0,0,ROUND(SomaAgrup,arredtot)))","v":97450.96},{"$f":"X15-V15","v":158232.57},{"$f":"IF($A15=\"S\",VTOTAL,IF($A15=0,0,ROUND(SomaAgrup,arredtot)))","v":255683.53},null,null,null,null,null,null,null,null,null,null,null,null,null,null,null,null,null,null,null,null,null,null,null,null,null,null,0,{"$f":"BA15-AY15","v":0},0,{"$f":"IF($A15=\"S\",VTOTAL,IF($A15=0,0,ROUND(SomaAgrup,arredtot)))","v":0},{"$f":"BD15-BB15","v":0},{"$f":"IF($A15=\"S\",VTOTAL,IF($A15=0,0,ROUND(SomaAgrup,arredtot)))","v":0},null,{"$f":"IF(BK15>0,L15,\"\")","v":"1."},null,{"$f":"IF(BK15>0,M15,\"\")","v":"PAVIMENTACAO DE DIVERSAS RUAS DO MUNICÍPIO DE VERTENTES-PE"},{"$f":"IF(BK15>0,N15,\"\")","v":""},null,{"$f":"IF(BR15>0,CHOOSE(MATCH(RegimeExecucao,{\"Unitário\",\"Global\"},0),IF($A15=\"S\",BR15/BN15,\"\"),(BR15/BN15)*100),\"\")","v":20.619639017266795},null,null,{"$f":"IF(BR15>0,CHOOSE(MATCH(RegimeExecucao,{\"Unitário\",\"Global\"},0),IF($A15=\"S\",ROUND(P15,arredunit),\"\"),ROUND(R15,arredtot)),\"\")","v":1240000.03},null,null,null,255683.53]
[{"$f":"CHOOSE(1+LOG(1+2*(K16=\"Meta\")+4*(K16=\"Nível 2\")+8*(K16=\"Nível 3\")+16*(K16=\"Nível 4\")+32*(K16=\"Serviço\"),2),0,1,2,3,4,\"S\")","v":2},{"$f":"IF(OR(A16=\"S\",A16=0),0,IF(ISERROR(I16),H16,SMALL(H16:I16,1)))","v":2},1,1,0,0,0,108,2,1,"Nível 2","1.1.","SERVIÇOS PRELIMINARES","",0,0,4074.1,4074.1,0,0,0,0,{"$f":"X16-V16","v":0},0,null,null,null,null,null,null,null,null,null,null,null,null,null,null,null,null,null,null,null,null,null,null,null,null,null,null,0,{"$f":"BA16-AY16","v":0},0,0,{"$f":"BD16-BB16","v":0},0,null,{"$f":"IF(BK16>0,L16,\"\")","v":"1.1."},null,{"$f":"IF(BK16>0,M16,\"\")","v":"SERVIÇOS PRELIMINARES"},{"$f":"IF(BK16>0,N16,\"\")","v":""},null,{"$f":"IF(BR16>0,CHOOSE(MATCH(RegimeExecucao,{\"Unitário\",\"Global\"},0),IF($A16=\"S\",BR16/BN16,\"\"),(BR16/BN16)*100),\"\")","v":""},null,null,{"$f":"IF(BR16>0,CHOOSE(MATCH(RegimeExecucao,{\"Unitário\",\"Global\"},0),IF($A16=\"S\",ROUND(P16,arredunit),\"\"),ROUND(R16,arredtot)),\"\")","v":""},null,null,null,0]
["S",0,1,1,0,0,1,0,0,3,"Serviço","1.1.0.1.","PLACA DE OBRA EM CHAPA DE ACO GALVANIZADO","M2",10,407.41,4074.1,4074.1,0,0,0,0,0,0,null,null,null,null,null,null,null,null,null,null,null,null,null,null,null,null,null,null,null,null,null,null,null,null,null,null,0,0,0,0,0,0,null,"1.1.0.1.",null,"PLACA DE OBRA EM CHAPA DE ACO GALVANIZADO","M2",null,{"$f":"IF(BR17>0,CHOOSE(MATCH(RegimeExecucao,{\"Unitário\",\"Global\"},0),IF($A17=\"S\",BR17/BN17,\"\"),(BR17/BN17)*100),\"\")","v":""},null,null,{"$f":"IF(BR17>0,CHOOSE(MATCH(RegimeExecucao,{\"Unitário\",\"Global\"},0),IF($A17=\"S\",ROUND(P17,arredunit),\"\"),ROUND(R17,arredtot)),\"\")","v":""},null,null,null,0]
[2,10,1,2,0,0,0,106,10,1,"Nível 2","1.2.","RUA DE SÃO JOSÉ","",0,0,133882.1,133882.1,72.788640154285005,0,72.788640154285005,97450.96,0,97450.96,null,null,null,null,null,null,null,null,null,null,null,null,null,null,null,null,null,null,null,null,null,null,null,null,null,null,0,0,0,0,0,0,null,"1.2.",null,"RUA DE SÃO JOSÉ","",null,{"$f":"IF(BR18>0,CHOOSE(MATCH(RegimeExecucao,{\"Unitário\",\"Global\"},0),IF($A18=\"S\",BR18/BN18,\"\"),(BR18/BN18)*100),\"\")","v":72.788640154285005},null,null,{"$f":"IF(BR18>0,CHOOSE(MATCH(RegimeExecucao,{\"Unitário\",\"Global\"},0),IF($A18=\"S\",ROUND(P18,arredunit),\"\"),ROUND(R18,arredtot)),\"\")","v":133882.1},null,null,null,97450.96]
[3,5,1,2,1,0,0,9,5,2,"Nível 3","1.2.1.","PAVIMENTAÇÃO","",0,0,97744.61,97744.61,99.699574227161989,0,99.699574227161989,97450.96,0,97450.96,null,null,null,null,null,null,null,null,null,null,null,null,null,null,null,null,null,null,null,null,null,null,null,null,null,null,0,0,0,0,0,0,null,"1.2.1.",null,"PAVIMENTAÇÃO","",null,{"$f":"IF(BR19>0,CHOOSE(MATCH(RegimeExecucao,{\"Unitário\",\"Global\"},0),IF($A19=\"S\",BR19/BN19,\"\"),(BR19/BN19)*100),\"\")","v":99.699574227161989},null,null,{"$f":"IF(BR19>0,CHOOSE(MATCH(RegimeExecucao,{\"Unitário\",\"Global\"},0),IF($A19=\"S\",ROUND(P19,arredunit),\"\"),ROUND(R19,arredtot)),\"\")","v":97744.61},null,null,null,97450.96]
["S",0,1,2,1,0,1,0,0,3,"Serviço","1.2.1.1.","REGULARIZACAO E COMPACTACAO DE SUBLEITO ATE 20 CM DE ESPESSURA","M2",1119.3800000000001,1.7,1902.95,1902.95,98.72,0,98.72,1878.59,0,1878.59,null,98.72,null,null,null,null,null,null,null,null,null,null,null,null,null,null,null,null,null,null,null,null,null,null,null,null,0,0,0,0,0,0,null,"1.2.1.1.",null,"REGULARIZACAO E COMPACTACAO DE SUBLEITO ATE 20 CM DE ESPESSURA","M2",null,{"$f":"IF(BR20>0,CHOOSE(MATCH(RegimeExecucao,{\"Unitário\",\"Global\"},0),IF($A20=\"S\",BR20/BN20,\"\"),(BR20/BN20)*100),\"\")","v":98.719882288026483},null,null,{"$f":"IF(BR20>0,CHOOSE(MATCH(RegimeExecucao,{\"Unitário\",\"Global\"},0),IF($A20=\"S\",ROUND(P20,arredunit),\"\"),ROUND(R20,arredtot)),\"\")","v":1902.95},null,null,null,1878.59]
["S",0,1,2,1,0,2,0,0,3,"Serviço","1.2.1.2.","ASSENTAMENTO DE GUIA (MEIO-FIO) EM TRECHO RETO, CONFECCIONADA EM CONCRETO PRÉ-FABRICADO, DIMENSÕES 100X15X13X30 CM (COMPRIMENTO X BASE INFERIOR X BASE SUPERIOR X ALTURA), PARA VIAS URBANAS (USO VIÁRIO). AF_06/2016","M",448.69,40.28,18073.23,18073.23,98.51,0,98.51,17803.939999999999,0,17803.939999999999,null,98.51,null,null,null,null,null,null,null,null,null,null,null,null,null,null,null,null,null,null,null,null,null,null,null,null,0,0,0,0,0,0,null,"1.2.1.2.",null,"ASSENTAMENTO DE GUIA (MEIO-FIO) EM TRECHO RETO, CONFECCIONADA EM CONCRETO PRÉ-FABRICADO, DIMENSÕES 100X15X13X30 CM (COMPRIMENTO X BASE INFERIOR X BASE SUPERIOR X ALTURA), PARA VIAS URBANAS (USO VIÁRIO). AF_06/2016","M",null,{"$f":"IF(BR21>0,CHOOSE(MATCH(RegimeExecucao,{\"Unitário\",\"Global\"},0),IF($A21=\"S\",BR21/BN21,\"\"),(BR21/BN21)*100),\"\")","v":98.510006235742026},null,null,{"$f":"IF(BR21>0,CHOOSE(MATCH(RegimeExecucao,{\"Unitário\",\"Global\"},0),IF($A21=\"S\",ROUND(P21,arredunit),\"\"),ROUND(R21,arredtot)),\"\")","v":18073.23},null,null,null,17803.939999999999]
["S",0,1,2,1,0,3,0,0,3,"Serviço","1.2.1.3.","EXECUÇÃO DE SARJETA DE CONCRETO USINADO, MOLDADA  IN LOCO  EM TRECHO RETO, 30 CM BASE X 15 CM ALTURA. AF_06/2016","M",404.49,41.21,16669.03,16669.03,100,0,100,16669.03,0,16669.03,null,100,null,null,null,null,null,null,null,null,null,null,null,null,null,null,null,null,null,null,null,null,null,null,null,null,0,0,0,0,0,0,null,"1.2.1.3.",null,"EXECUÇÃO DE SARJETA DE CONCRETO USINADO, MOLDADA  IN LOCO  EM TRECHO RETO, 30 CM BASE X 15 CM ALTURA. AF_06/2016","M",null,{"$f":"IF(BR22>0,CHOOSE(MATCH(RegimeExecucao,{\"Unitário\",\"Global\"},0),IF($A22=\"S\",BR22/BN22,\"\"),(BR22/BN22)*100),\"\")","v":100},null,null,{"$f":"IF(BR22>0,CHOOSE(MATCH(RegimeExecucao,{\"Unitário\",\"Global\"},0),IF($A22=\"S\",ROUND(P22,arredunit),\"\"),ROUND(R22,arredtot)),\"\")","v":16669.03},null,null,null,16669.03]
["S",0,1,2,1,0,4,0,0,3,"Serviço","1.2.1.4.","PAVIMENTO EM PARALELEPIPEDO SOBRE COLCHAO DE AREIA REJUNTADO COM ARGAMASSA DE CIMENTO E AREIA NO TRAÇO 1:3 (PEDRAS PEQUENAS 30 A 35 PECAS POR M2)","M2",998.03,61.22,61099.4,61099.4,100,0,100,61099.4,0,61099.4,null,100,null,null,null,null,null,null,null,null,null,null,null,null,null,null,null,null,null,null,null,null,null,null,null,null,0,0,0,0,0,0,null,"1.2.1.4.",null,"PAVIMENTO EM PARALELEPIPEDO SOBRE COLCHAO DE AREIA REJUNTADO COM ARGAMASSA DE CIMENTO E AREIA NO TRAÇO 1:3 (PEDRAS PEQUENAS 30 A 35 PECAS POR M2)","M2",null,{"$f":"IF(BR23>0,CHOOSE(MATCH(RegimeExecucao,{\"Unitário\",\"Global\"},0),IF($A23=\"S\",BR23/BN23,\"\"),(BR23/BN23)*100),\"\")","v":100},null,null,{"$f":"IF(BR23>0,CHOOSE(MATCH(RegimeExecucao,{\"Unitário\",\"Global\"},0),IF($A23=\"S\",ROUND(P23,arredunit),\"\"),ROUND(R23,arredtot)),\"\")","v":61099.4},null,null,null,61099.4]
[3,4,1,2,2,0,0,4,{"$error":"#N/A"},2,"Nível 3","1.2.2.","CALÇADA","",0,0,{"$f":"Q25+Q26+Q27","v":36137.49},36137.49,0,0,0,0,0,0,null,null,null,null,null,null,null,null,null,null,null,null,null,null,null,null,null,null,null,null,null,null,null,null,null,null,0,0,0,0,0,0,null,"1.2.2.",null,"CALÇADA","",null,{"$f":"IF(BR24>0,CHOOSE(MATCH(RegimeExecucao,{\"Unitário\",\"Global\"},0),IF($A24=\"S\",BR24/BN24,\"\"),(BR24/BN24)*100),\"\")","v":""},null,null,{"$f":"IF(BR24>0,CHOOSE(MATCH(RegimeExecucao,{\"Unitário\",\"Global\"},0),IF($A24=\"S\",ROUND(P24,arredunit),\"\"),ROUND(R24,arredtot)),\"\")","v":""},null,null,null,0]
["S",0,1,2,2,0,1,0,0,3,"Serviço","1.2.2.1.","PISO PODOTATIL DE CONCRETO - DIRECIONAL E ALERTA, *40 X 40 X 2,5* CM","M2",39.6,90.58,3586.97,3586.97,0,0,0,0,0,0,null,null,null,null,null,null,null,null,null,null,null,null,null,null,null,null,null,null,null,null,null,null,null,null,null,null,0,0,0,0,0,0,null,"1.2.2.1.",null,"PISO PODOTATIL DE CONCRETO - DIRECIONAL E ALERTA, *40 X 40 X 2,5* CM","M2",null,{"$f":"IF(BR25>0,CHOOSE(MATCH(RegimeExecucao,{\"Unitário\",\"Global\"},0),IF($A25=\"S\",BR25/BN25,\"\"),(BR25/BN25)*100),\"\")","v":""},null,null,{"$f":"IF(BR25>0,CHOOSE(MATCH(RegimeExecucao,{\"Unitário\",\"Global\"},0),IF($A25=\"S\",ROUND(P25,arredunit),\"\"),ROUND(R25,arredtot)),\"\")","v":""},null,null,null,0]
["S",0,1,2,2,0,2,0,0,3,"Serviço","1.2.2.2.","ALVENARIA DE EMBASAMENTO EM TIJOLOS CERAMICOS MACICOS 5X10X20CM, ASSENTADO  COM ARGAMASSA TRACO 1:2:8 (CIMENTO, CAL E AREIA)","M3",7.97,696.86,5553.97,5553.97,0,0,0,0,0,0,null,null,null,null,null,null,null,null,null,null,null,null,null,null,null,null,null,null,null,null,null,null,null,null,null,null,0,0,0,0,0,0,null,"1.2.2.2.",null,"ALVENARIA DE EMBASAMENTO EM TIJOLOS CERAMICOS MACICOS 5X10X20CM, ASSENTADO  COM ARGAMASSA TRACO 1:2:8 (CIMENTO, CAL E AREIA)","M3",null,{"$f":"IF(BR26>0,CHOOSE(MATCH(RegimeExecucao,{\"Unitário\",\"Global\"},0),IF($A26=\"S\",BR26/BN26,\"\"),(BR26/BN26)*100),\"\")","v":""},null,null,{"$f":"IF(BR26>0,CHOOSE(MATCH(RegimeExecucao,{\"Unitário\",\"Global\"},0),IF($A26=\"S\",ROUND(P26,arredunit),\"\"),ROUND(R26,arredtot)),\"\")","v":""},null,null,null,0]
["S",0,1,2,2,0,3,0,0,3,"Serviço","1.2.2.3.","EXECUÇÃO DE PASSEIO (CALÇADA) OU PISO DE CONCRETO COM CONCRETO MOLDADO IN LOCO, FEITO EM OBRA, ACABAMENTO CONVENCIONAL, NÃO ARMADO. AF_07/2016","M3",41.68,647.71,26996.55,26996.55,0,0,0,0,0,0,null,null,null,null,null,null,null,null,null,null,null,null,null,null,null,null,null,null,null,null,null,null,null,null,null,null,0,0,0,0,0,0,null,"1.2.2.3.",null,"EXECUÇÃO DE PASSEIO (CALÇADA) OU PISO DE CONCRETO COM CONCRETO MOLDADO IN LOCO, FEITO EM OBRA, ACABAMENTO CONVENCIONAL, NÃO ARMADO. AF_07/2016","M3",null,{"$f":"IF(BR27>0,CHOOSE(MATCH(RegimeExecucao,{\"Unitário\",\"Global\"},0),IF($A27=\"S\",BR27/BN27,\"\"),(BR27/BN27)*100),\"\")","v":""},null,null,{"$f":"IF(BR27>0,CHOOSE(MATCH(RegimeExecucao,{\"Unitário\",\"Global\"},0),IF($A27=\"S\",ROUND(P27,arredunit),\"\"),ROUND(R27,arredtot)),\"\")","v":""},null,null,null,0]
[2,10,1,3,0,0,0,96,10,1,"Nível 2","1.3.","RUA SEVERINO FERREIRA DE ASSUNÇÃO","",0,0,211286.29,211286.29,0,16.121519290248315,16.121519290248315,0,34062.559999999998,34062.559999999998,null,null,null,null,null,null,null,null,null,null,null,null,null,null,null,null,null,null,null,null,null,null,null,null,null,null,0,0,0,0,0,0,null,"1.3.",null,"RUA SEVERINO FERREIRA DE ASSUNÇÃO","",null,{"$f":"IF(BR28>0,CHOOSE(MATCH(RegimeExecucao,{\"Unitário\",\"Global\"},0),IF($A28=\"S\",BR28/BN28,\"\"),(BR28/BN28)*100),\"\")","v":16.121519290248315},null,null,{"$f":"IF(BR28>0,CHOOSE(MATCH(RegimeExecucao,{\"Unitário\",\"Global\"},0),IF($A28=\"S\",ROUND(P28,arredunit),\"\"),ROUND(R28,arredtot)),\"\")","v":211286.29},null,null,null,34062.559999999998]
[3,5,1,3,1,0,0,9,5,2,"Nível 3","1.3.1.","PAVIMENTAÇÃO","",0,0,149633.04999999999,149633.04999999999,0,22.764061816557238,22.764061816557238,0,34062.559999999998,34062.559999999998,null,null,null,null,null,null,null,null,null,null,null,null,null,null,null,null,null,null,null,null,null,null,null,null,null,null,0,0,0,0,0,0,null,"1.3.1.",null,"PAVIMENTAÇÃO","",null,{"$f":"IF(BR29>0,CHOOSE(MATCH(RegimeExecucao,{\"Unitário\",\"Global\"},0),IF($A29=\"S\",BR29/BN29,\"\"),(BR29/BN29)*100),\"\")","v":22.764061816557238},null,null,{"$f":"IF(BR29>0,CHOOSE(MATCH(RegimeExecucao,{\"Unitário\",\"Global\"},0),IF($A29=\"S\",ROUND(P29,arredunit),\"\"),ROUND(R29,arredtot)),\"\")","v":149633.04999999999},null,null,null,34062.559999999998]
["S",0,1,3,1,0,1,0,0,3,"Serviço","1.3.1.1.","REGULARIZACAO E COMPACTACAO DE SUBLEITO ATE 20 CM DE ESPESSURA","M2",1646.14,1.7,2798.44,2798.44,0,30.98,30.98,0,866.96,866.96,null,null,30.98,null,null,null,null,null,null,null,null,null,null,null,null,null,null,null,null,null,null,null,null,null,null,null,0,0,0,0,0,0,null,"1.3.1.1.",null,"REGULARIZACAO E COMPACTACAO DE SUBLEITO ATE 20 CM DE ESPESSURA","M2",null,{"$f":"IF(BR30>0,CHOOSE(MATCH(RegimeExecucao,{\"Unitário\",\"Global\"},0),IF($A30=\"S\",BR30/BN30,\"\"),(BR30/BN30)*100),\"\")","v":30.980117494032388},null,null,{"$f":"IF(BR30>0,CHOOSE(MATCH(RegimeExecucao,{\"Unitário\",\"Global\"},0),IF($A30=\"S\",ROUND(P30,arredunit),\"\"),ROUND(R30,arredtot)),\"\")","v":2798.44},null,null,null,866.96]
["S",0,1,3,1,0,2,0,0,3,"Serviço","1.3.1.2.","ASSENTAMENTO DE GUIA (MEIO-FIO) EM TRECHO RETO, CONFECCIONADA EM CONCRETO PRÉ-FABRICADO, DIMENSÕES 100X15X13X30 CM (COMPRIMENTO X BASE INFERIOR X BASE SUPERIOR X ALTURA), PARA VIAS URBANAS (USO VIÁRIO). AF_06/2016","M",729.64,40.28,29389.9,29389.9,0,19.649999999999999,19.649999999999999,0,5775.12,5775.12,null,null,19.649999999999999,null,null,null,null,null,null,null,null,null,null,null,null,null,null,null,null,null,null,null,null,null,null,null,0,0,0,0,0,0,null,"1.3.1.2.",null,"ASSENTAMENTO DE GUIA (MEIO-FIO) EM TRECHO RETO, CONFECCIONADA EM CONCRETO PRÉ-FABRICADO, DIMENSÕES 100X15X13X30 CM (COMPRIMENTO X BASE INFERIOR X BASE SUPERIOR X ALTURA), PARA VIAS URBANAS (USO VIÁRIO). AF_06/2016","M",null,{"$f":"IF(BR31>0,CHOOSE(MATCH(RegimeExecucao,{\"Unitário\",\"Global\"},0),IF($A31=\"S\",BR31/BN31,\"\"),(BR31/BN31)*100),\"\")","v":19.650015821761897},null,null,{"$f":"IF(BR31>0,CHOOSE(MATCH(RegimeExecucao,{\"Unitário\",\"Global\"},0),IF($A31=\"S\",ROUND(P31,arredunit),\"\"),ROUND(R31,arredtot)),\"\")","v":29389.9},null,null,null,5775.12]
["S",0,1,3,1,0,3,0,0,3,"Serviço","1.3.1.3.","EXECUÇÃO DE SARJETA DE CONCRETO USINADO, MOLDADA  IN LOCO  EM TRECHO RETO, 30 CM BASE X 15 CM ALTURA. AF_06/2016","M",729.64,41.21,30068.46,30068.46,0,19.649999999999999,19.649999999999999,0,5908.45,5908.45,null,null,19.649999999999999,null,null,null,null,null,null,null,null,null,null,null,null,null,null,null,null,null,null,null,null,null,null,null,0,0,0,0,0,0,null,"1.3.1.3.",null,"EXECUÇÃO DE SARJETA DE CONCRETO USINADO, MOLDADA  IN LOCO  EM TRECHO RETO, 30 CM BASE X 15 CM ALTURA. AF_06/2016","M",null,{"$f":"IF(BR32>0,CHOOSE(MATCH(RegimeExecucao,{\"Unitário\",\"Global\"},0),IF($A32=\"S\",BR32/BN32,\"\"),(BR32/BN32)*100),\"\")","v":19.649992051471873},null,null,{"$f":"IF(BR32>0,CHOOSE(MATCH(RegimeExecucao,{\"Unitário\",\"Global\"},0),IF($A32=\"S\",ROUND(P32,arredunit),\"\"),ROUND(R32,arredtot)),\"\")","v":30068.46},null,null,null,5908.45]
["S",0,1,3,1,0,4,0,0,3,"Serviço","1.3.1.4.","PAVIMENTO EM PARALELEPIPEDO SOBRE COLCHAO DE AREIA REJUNTADO COM ARGAMASSA DE CIMENTO E AREIA NO TRAÇO 1:3 (PEDRAS PEQUENAS 30 A 35 PECAS POR M2)","M2",1427.25,61.22,87376.25,87376.25,0,24.62,24.62,0,21512.03,21512.03,null,null,24.62,null,null,null,null,null,null,null,null,null,null,null,null,null,null,null,null,null,null,null,null,null,null,null,0,0,0,0,0,0,null,"1.3.1.4.",null,"PAVIMENTO EM PARALELEPIPEDO SOBRE COLCHAO DE AREIA REJUNTADO COM ARGAMASSA DE CIMENTO E AREIA NO TRAÇO 1:3 (PEDRAS PEQUENAS 30 A 35 PECAS POR M2)","M2",null,{"$f":"IF(BR33>0,CHOOSE(MATCH(RegimeExecucao,{\"Unitário\",\"Global\"},0),IF($A33=\"S\",BR33/BN33,\"\"),(BR33/BN33)*100),\"\")","v":24.61999685269166},null,null,{"$f":"IF(BR33>0,CHOOSE(MATCH(RegimeExecucao,{\"Unitário\",\"Global\"},0),IF($A33=\"S\",ROUND(P33,arredunit),\"\"),ROUND(R33,arredtot)),\"\")","v":87376.25},null,null,null,21512.03]
[3,4,1,3,2,0,0,4,{"$error":"#N/A"},2,"Nível 3","1.3.2.","CALÇADA","",0,0,{"$f":"Q35+Q36+Q37","v":61653.24},61653.24,0,0,0,0,0,0,null,null,null,null,null,null,null,null,null,null,null,null,null,null,null,null,null,null,null,null,null,null,null,null,null,null,0,0,0,0,0,0,null,"1.3.2.",null,"CALÇADA","",null,{"$f":"IF(BR34>0,CHOOSE(MATCH(RegimeExecucao,{\"Unitário\",\"Global\"},0),IF($A34=\"S\",BR34/BN34,\"\"),(BR34/BN34)*100),\"\")","v":""},null,null,{"$f":"IF(BR34>0,CHOOSE(MATCH(RegimeExecucao,{\"Unitário\",\"Global\"},0),IF($A34=\"S\",ROUND(P34,arredunit),\"\"),ROUND(R34,arredtot)),\"\")","v":""},null,null,null,0]
["S",0,1,3,2,0,1,0,0,3,"Serviço","1.3.2.1.","PISO PODOTATIL DE CONCRETO - DIRECIONAL E ALERTA, *40 X 40 X 2,5* CM","M2",28.8,90.58,2608.6999999999998,2608.6999999999998,0,0,0,0,0,0,null,null,null,null,null,null,null,null,null,null,null,null,null,null,null,null,null,null,null,null,null,null,null,null,null,null,0,0,0,0,0,0,null,"1.3.2.1.",null,"PISO PODOTATIL DE CONCRETO - DIRECIONAL E ALERTA, *40 X 40 X 2,5* CM","M2",null,{"$f":"IF(BR35>0,CHOOSE(MATCH(RegimeExecucao,{\"Unitário\",\"Global\"},0),IF($A35=\"S\",BR35/BN35,\"\"),(BR35/BN35)*100),\"\")","v":""},null,null,{"$f":"IF(BR35>0,CHOOSE(MATCH(RegimeExecucao,{\"Unitário\",\"Global\"},0),IF($A35=\"S\",ROUND(P35,arredunit),\"\"),ROUND(R35,arredtot)),\"\")","v":""},null,null,null,0]
["S",0,1,3,2,0,2,0,0,3,"Serviço","1.3.2.2.","ALVENARIA DE EMBASAMENTO EM TIJOLOS CERAMICOS MACICOS 5X10X20CM, ASSENTADO  COM ARGAMASSA TRACO 1:2:8 (CIMENTO, CAL E AREIA)","M3",14.35,696.86,9999.94,9999.94,0,0,0,0,0,0,null,null,null,null,null,null,null,null,null,null,null,null,null,null,null,null,null,null,null,null,null,null,null,null,null,null,0,0,0,0,0,0,null,"1.3.2.2.",null,"ALVENARIA DE EMBASAMENTO EM TIJOLOS CERAMICOS MACICOS 5X10X20CM, ASSENTADO  COM ARGAMASSA TRACO 1:2:8 (CIMENTO, CAL E AREIA)","M3",null,{"$f":"IF(BR36>0,CHOOSE(MATCH(RegimeExecucao,{\"Unitário\",\"Global\"},0),IF($A36=\"S\",BR36/BN36,\"\"),(BR36/BN36)*100),\"\")","v":""},null,null,{"$f":"IF(BR36>0,CHOOSE(MATCH(RegimeExecucao,{\"Unitário\",\"Global\"},0),IF($A36=\"S\",ROUND(P36,arredunit),\"\"),ROUND(R36,arredtot)),\"\")","v":""},null,null,null,0]
[{"$f":"CHOOSE(1+LOG(1+2*(K37=\"Meta\")+4*(K37=\"Nível 2\")+8*(K37=\"Nível 3\")+16*(K37=\"Nível 4\")+32*(K37=\"Serviço\"),2),0,1,2,3,4,\"S\")","v":"S"},{"$f":"IF(OR(A37=\"S\",A37=0),0,IF(ISERROR(I37),H37,SMALL(H37:I37,1)))","v":0},1,3,2,0,3,0,0,3,"Serviço","1.3.2.3.","EXECUÇÃO DE PASSEIO (CALÇADA) OU PISO DE CONCRETO COM CONCRETO MOLDADO IN LOCO, FEITO EM OBRA, ACABAMENTO CONVENCIONAL, NÃO ARMADO. AF_07/2016","M3",75.72,647.71,49044.6,49044.6,{"$f":"IF(AND($A37=\"S\",COUNTIF($Z$13:$AW$13,mediçao-1)>0),SUM(OFFSET($Z37,0,0,1,MATCH(mediçao-1,$Z$13:$AW$13,0))),IF(AND(RegimeExecucao=\"Global\",$R37>0,COUNTIF($Z$13:$AW$13,mediçao-1)>0),V37/$R37*100,0))","v":0},{"$f":"U37-S37","v":0},{"$f":"IF(AND($A37=\"S\",COUNTIF($Z$13:$AW$13,mediçao)>0),SUM(OFFSET($Z37,0,0,1,MATCH(mediçao,$Z$13:$AW$13,0))),IF(AND(RegimeExecucao=\"Global\",$R37>0,COUNTIF($Z$13:$AW$13,mediçao)>0),X37/$R37*100,0))","v":0},0,{"$f":"X37-V37","v":0},0,null,null,null,null,null,null,null,null,null,null,null,null,null,null,null,null,null,null,null,null,null,null,null,null,null,null,0,{"$f":"BA37-AY37","v":0},0,0,{"$f":"BD37-BB37","v":0},0,null,{"$f":"IF(BK37>0,L37,\"\")","v":"1.3.2.3."},null,{"$f":"IF(BK37>0,M37,\"\")","v":"EXECUÇÃO DE PASSEIO (CALÇADA) OU PISO DE CONCRETO COM CONCRETO MOLDADO IN LOCO, FEITO EM OBRA, ACABAMENTO CONVENCIONAL, NÃO ARMADO. AF_07/2016"},{"$f":"IF(BK37>0,N37,\"\")","v":"M3"},null,{"$f":"IF(BR37>0,CHOOSE(MATCH(RegimeExecucao,{\"Unitário\",\"Global\"},0),IF($A37=\"S\",BR37/BN37,\"\"),(BR37/BN37)*100),\"\")","v":""},null,null,{"$f":"IF(BR37>0,CHOOSE(MATCH(RegimeExecucao,{\"Unitário\",\"Global\"},0),IF($A37=\"S\",ROUND(P37,arredunit),\"\"),ROUND(R37,arredtot)),\"\")","v":""},null,null,null,0]
[2,10,1,4,0,0,0,86,10,1,"Nível 2","1.4.","RUA FERNANDO ANTÔNIO DE OLIVEIRA","",0,0,{"$f":"Q39+Q44","v":223971.77000000002},223971.77,0,55.440027106987635,55.440027106987635,0,124170.01,124170.01,null,null,null,null,null,null,null,null,null,null,null,null,null,null,null,null,null,null,null,null,null,null,null,null,null,null,0,0,0,0,0,0,null,"1.4.",null,"RUA FERNANDO ANTÔNIO DE OLIVEIRA","",null,{"$f":"IF(BR38>0,CHOOSE(MATCH(RegimeExecucao,{\"Unitário\",\"Global\"},0),IF($A38=\"S\",BR38/BN38,\"\"),(BR38/BN38)*100),\"\")","v":55.440027106987635},null,null,{"$f":"IF(BR38>0,CHOOSE(MATCH(RegimeExecucao,{\"Unitário\",\"Global\"},0),IF($A38=\"S\",ROUND(P38,arredunit),\"\"),ROUND(R38,arredtot)),\"\")","v":223971.77},null,null,null,124170.01]
[3,5,1,4,1,0,0,9,5,2,"Nível 3","1.4.1.","PAVIMENTAÇÃO","",0,0,166001.81,166001.81,0,74.800395248702415,74.800395248702415,0,124170.01,124170.01,null,null,null,null,null,null,null,null,null,null,null,null,null,null,null,null,null,null,null,null,null,null,null,null,null,null,0,0,0,0,0,0,null,"1.4.1.",null,"PAVIMENTAÇÃO","",null,{"$f":"IF(BR39>0,CHOOSE(MATCH(RegimeExecucao,{\"Unitário\",\"Global\"},0),IF($A39=\"S\",BR39/BN39,\"\"),(BR39/BN39)*100),\"\")","v":74.800395248702415},null,null,{"$f":"IF(BR39>0,CHOOSE(MATCH(RegimeExecucao,{\"Unitário\",\"Global\"},0),IF($A39=\"S\",ROUND(P39,arredunit),\"\"),ROUND(R39,arredtot)),\"\")","v":166001.81},null,null,null,124170.01]
["S",0,1,4,1,0,1,0,0,3,"Serviço","1.4.1.1.","REGULARIZACAO E COMPACTACAO DE SUBLEITO ATE 20 CM DE ESPESSURA","M2",1791.06,1.7,3044.8,3044.8,0,72.58,72.58,0,2209.92,2209.92,null,null,72.58,null,null,null,null,null,null,null,null,null,null,null,null,null,null,null,null,null,null,null,null,null,null,null,0,0,0,0,0,0,null,"1.4.1.1.",null,"REGULARIZACAO E COMPACTACAO DE SUBLEITO ATE 20 CM DE ESPESSURA","M2",null,{"$f":"IF(BR40>0,CHOOSE(MATCH(RegimeExecucao,{\"Unitário\",\"Global\"},0),IF($A40=\"S\",BR40/BN40,\"\"),(BR40/BN40)*100),\"\")","v":72.580136626379399},null,null,{"$f":"IF(BR40>0,CHOOSE(MATCH(RegimeExecucao,{\"Unitário\",\"Global\"},0),IF($A40=\"S\",ROUND(P40,arredunit),\"\"),ROUND(R40,arredtot)),\"\")","v":3044.8},null,null,null,2209.92]
["S",0,1,4,1,0,2,0,0,3,"Serviço","1.4.1.2.","ASSENTAMENTO DE GUIA (MEIO-FIO) EM TRECHO RETO, CONFECCIONADA EM CONCRETO PRÉ-FABRICADO, DIMENSÕES 100X15X13X30 CM (COMPRIMENTO X BASE INFERIOR X BASE SUPERIOR X ALTURA), PARA VIAS URBANAS (USO VIÁRIO). AF_06/2016","M",856.84,40.28,34513.519999999997,34513.519999999997,0,60.69,60.69,0,20946.259999999998,20946.259999999998,null,null,60.69,null,null,null,null,null,null,null,null,null,null,null,null,null,null,null,null,null,null,null,null,null,null,null,0,0,0,0,0,0,null,"1.4.1.2.",null,"ASSENTAMENTO DE GUIA (MEIO-FIO) EM TRECHO RETO, CONFECCIONADA EM CONCRETO PRÉ-FABRICADO, DIMENSÕES 100X15X13X30 CM (COMPRIMENTO X BASE INFERIOR X BASE SUPERIOR X ALTURA), PARA VIAS URBANAS (USO VIÁRIO). AF_06/2016","M",null,{"$f":"IF(BR41>0,CHOOSE(MATCH(RegimeExecucao,{\"Unitário\",\"Global\"},0),IF($A41=\"S\",BR41/BN41,\"\"),(BR41/BN41)*100),\"\")","v":60.690013652620763},null,null,{"$f":"IF(BR41>0,CHOOSE(MATCH(RegimeExecucao,{\"Unitário\",\"Global\"},0),IF($A41=\"S\",ROUND(P41,arredunit),\"\"),ROUND(R41,arredtot)),\"\")","v":34513.519999999997},null,null,null,20946.259999999998]
["S",0,1,4,1,0,3,0,0,3,"Serviço","1.4.1.3.","EXECUÇÃO DE SARJETA DE CONCRETO USINADO, MOLDADA  IN LOCO  EM TRECHO RETO, 30 CM BASE X 15 CM ALTURA. AF_06/2016","M",822.74,41.21,33905.120000000003,33905.120000000003,0,63.21,63.21,0,21431.43,21431.43,null,null,63.21,null,null,null,null,null,null,null,null,null,null,null,null,null,null,null,null,null,null,null,null,null,null,null,0,0,0,0,0,0,null,"1.4.1.3.",null,"EXECUÇÃO DE SARJETA DE CONCRETO USINADO, MOLDADA  IN LOCO  EM TRECHO RETO, 30 CM BASE X 15 CM ALTURA. AF_06/2016","M",null,{"$f":"IF(BR42>0,CHOOSE(MATCH(RegimeExecucao,{\"Unitário\",\"Global\"},0),IF($A42=\"S\",BR42/BN42,\"\"),(BR42/BN42)*100),\"\")","v":63.210010759436919},null,null,{"$f":"IF(BR42>0,CHOOSE(MATCH(RegimeExecucao,{\"Unitário\",\"Global\"},0),IF($A42=\"S\",ROUND(P42,arredunit),\"\"),ROUND(R42,arredtot)),\"\")","v":33905.120000000003},null,null,null,21431.43]
["S",0,1,4,1,0,4,0,0,3,"Serviço","1.4.1.4.","PAVIMENTO EM PARALELEPIPEDO SOBRE COLCHAO DE AREIA REJUNTADO COM ARGAMASSA DE CIMENTO E AREIA NO TRAÇO 1:3 (PEDRAS PEQUENAS 30 A 35 PECAS POR M2)","M2",1544.24,61.22,94538.37,94538.37,0,84.18,84.18,0,79582.399999999994,79582.399999999994,null,null,84.18,null,null,null,null,null,null,null,null,null,null,null,null,null,null,null,null,null,null,null,null,null,null,null,0,0,0,0,0,0,null,"1.4.1.4.",null,"PAVIMENTO EM PARALELEPIPEDO SOBRE COLCHAO DE AREIA REJUNTADO COM ARGAMASSA DE CIMENTO E AREIA NO TRAÇO 1:3 (PEDRAS PEQUENAS 30 A 35 PECAS POR M2)","M2",null,{"$f":"IF(BR43>0,CHOOSE(MATCH(RegimeExecucao,{\"Unitário\",\"Global\"},0),IF($A43=\"S\",BR43/BN43,\"\"),(BR43/BN43)*100),\"\")","v":84.180000141741388},null,null,{"$f":"IF(BR43>0,CHOOSE(MATCH(RegimeExecucao,{\"Unitário\",\"Global\"},0),IF($A43=\"S\",ROUND(P43,arredunit),\"\"),ROUND(R43,arredtot)),\"\")","v":94538.37},null,null,null,79582.399999999994]
[3,4,1,4,2,0,0,4,{"$error":"#N/A"},2,"Nível 3","1.4.2.","CALÇADA","",0,0,{"$f":"Q45+Q46+Q47","v":57969.960000000006},57969.96,0,0,0,0,0,0,null,null,null,null,null,null,null,null,null,null,null,null,null,null,null,null,null,null,null,null,null,null,null,null,null,null,0,0,0,0,0,0,null,"1.4.2.",null,"CALÇADA","",null,{"$f":"IF(BR44>0,CHOOSE(MATCH(RegimeExecucao,{\"Unitário\",\"Global\"},0),IF($A44=\"S\",BR44/BN44,\"\"),(BR44/BN44)*100),\"\")","v":""},null,null,{"$f":"IF(BR44>0,CHOOSE(MATCH(RegimeExecucao,{\"Unitário\",\"Global\"},0),IF($A44=\"S\",ROUND(P44,arredunit),\"\"),ROUND(R44,arredtot)),\"\")","v":""},null,null,null,0]
["S",0,1,4,2,0,1,0,0,3,"Serviço","1.4.2.1.","PISO PODOTATIL DE CONCRETO - DIRECIONAL E ALERTA, *40 X 40 X 2,5* CM","M2",34.32,90.58,3108.71,3108.71,0,0,0,0,0,0,null,null,null,null,null,null,null,null,null,null,null,null,null,null,null,null,null,null,null,null,null,null,null,null,null,null,0,0,0,0,0,0,null,"1.4.2.1.",null,"PISO PODOTATIL DE CONCRETO - DIRECIONAL E ALERTA, *40 X 40 X 2,5* CM","M2",null,{"$f":"IF(BR45>0,CHOOSE(MATCH(RegimeExecucao,{\"Unitário\",\"Global\"},0),IF($A45=\"S\",BR45/BN45,\"\"),(BR45/BN45)*100),\"\")","v":""},null,null,{"$f":"IF(BR45>0,CHOOSE(MATCH(RegimeExecucao,{\"Unitário\",\"Global\"},0),IF($A45=\"S\",ROUND(P45,arredunit),\"\"),ROUND(R45,arredtot)),\"\")","v":""},null,null,null,0]
["S",0,1,4,2,0,2,0,0,3,"Serviço","1.4.2.2.","ALVENARIA DE EMBASAMENTO EM TIJOLOS CERAMICOS MACICOS 5X10X20CM, ASSENTADO  COM ARGAMASSA TRACO 1:2:8 (CIMENTO, CAL E AREIA)","M3",15.95,696.86,11114.92,11114.92,0,0,0,0,0,0,null,null,null,null,null,null,null,null,null,null,null,null,null,null,null,null,null,null,null,null,null,null,null,null,null,null,0,0,0,0,0,0,null,"1.4.2.2.",null,"ALVENARIA DE EMBASAMENTO EM TIJOLOS CERAMICOS MACICOS 5X10X20CM, ASSENTADO  COM ARGAMASSA TRACO 1:2:8 (CIMENTO, CAL E AREIA)","M3",null,{"$f":"IF(BR46>0,CHOOSE(MATCH(RegimeExecucao,{\"Unitário\",\"Global\"},0),IF($A46=\"S\",BR46/BN46,\"\"),(BR46/BN46)*100),\"\")","v":""},null,null,{"$f":"IF(BR46>0,CHOOSE(MATCH(RegimeExecucao,{\"Unitário\",\"Global\"},0),IF($A46=\"S\",ROUND(P46,arredunit),\"\"),ROUND(R46,arredtot)),\"\")","v":""},null,null,null,0]
["S",0,1,4,2,0,3,0,0,3,"Serviço","1.4.2.3.","EXECUÇÃO DE PASSEIO (CALÇADA) OU PISO DE CONCRETO COM CONCRETO MOLDADO IN LOCO, FEITO EM OBRA, ACABAMENTO CONVENCIONAL, NÃO ARMADO. AF_07/2016","M3",67.540000000000006,647.71,43746.33,43746.33,0,0,0,0,0,0,null,null,null,null,null,null,null,null,null,null,null,null,null,null,null,null,null,null,null,null,null,null,null,null,null,null,0,0,0,0,0,0,null,"1.4.2.3.",null,"EXECUÇÃO DE PASSEIO (CALÇADA) OU PISO DE CONCRETO COM CONCRETO MOLDADO IN LOCO, FEITO EM OBRA, ACABAMENTO CONVENCIONAL, NÃO ARMADO. AF_07/2016","M3",null,{"$f":"IF(BR47>0,CHOOSE(MATCH(RegimeExecucao,{\"Unitário\",\"Global\"},0),IF($A47=\"S\",BR47/BN47,\"\"),(BR47/BN47)*100),\"\")","v":""},null,null,{"$f":"IF(BR47>0,CHOOSE(MATCH(RegimeExecucao,{\"Unitário\",\"Global\"},0),IF($A47=\"S\",ROUND(P47,arredunit),\"\"),ROUND(R47,arredtot)),\"\")","v":""},null,null,null,0]
[2,10,1,5,0,0,0,76,10,1,"Nível 2","1.5.","RUA HELENO JOSÉ DE MOURA","",0,0,57799.97,57799.97,0,0,0,0,0,0,null,null,null,null,null,null,null,null,null,null,null,null,null,null,null,null,null,null,null,null,null,null,null,null,null,null,0,0,0,0,0,0,null,"1.5.",null,"RUA HELENO JOSÉ DE MOURA","",null,{"$f":"IF(BR48>0,CHOOSE(MATCH(RegimeExecucao,{\"Unitário\",\"Global\"},0),IF($A48=\"S\",BR48/BN48,\"\"),(BR48/BN48)*100),\"\")","v":""},null,null,{"$f":"IF(BR48>0,CHOOSE(MATCH(RegimeExecucao,{\"Unitário\",\"Global\"},0),IF($A48=\"S\",ROUND(P48,arredunit),\"\"),ROUND(R48,arredtot)),\"\")","v":""},null,null,null,0]
[3,5,1,5,1,0,0,9,5,2,"Nível 3","1.5.1.","PAVIMENTAÇÃO","",0,0,{"$f":"Q50+Q51+Q52+Q53","v":41913.61},41913.61,0,0,0,0,0,0,null,null,null,null,null,null,null,null,null,null,null,null,null,null,null,null,null,null,null,null,null,null,null,null,null,null,0,0,0,0,0,0,null,"1.5.1.",null,"PAVIMENTAÇÃO","",null,{"$f":"IF(BR49>0,CHOOSE(MATCH(RegimeExecucao,{\"Unitário\",\"Global\"},0),IF($A49=\"S\",BR49/BN49,\"\"),(BR49/BN49)*100),\"\")","v":""},null,null,{"$f":"IF(BR49>0,CHOOSE(MATCH(RegimeExecucao,{\"Unitário\",\"Global\"},0),IF($A49=\"S\",ROUND(P49,arredunit),\"\"),ROUND(R49,arredtot)),\"\")","v":""},null,null,null,0]
["S",0,1,5,1,0,1,0,0,3,"Serviço","1.5.1.1.","REGULARIZACAO E COMPACTACAO DE SUBLEITO ATE 20 CM DE ESPESSURA","M2",471.6,1.7,801.72,801.72,0,0,0,0,0,0,null,null,null,null,null,null,null,null,null,null,null,null,null,null,null,null,null,null,null,null,null,null,null,null,null,null,0,0,0,0,0,0,null,"1.5.1.1.",null,"REGULARIZACAO E COMPACTACAO DE SUBLEITO ATE 20 CM DE ESPESSURA","M2",null,{"$f":"IF(BR50>0,CHOOSE(MATCH(RegimeExecucao,{\"Unitário\",\"Global\"},0),IF($A50=\"S\",BR50/BN50,\"\"),(BR50/BN50)*100),\"\")","v":""},null,null,{"$f":"IF(BR50>0,CHOOSE(MATCH(RegimeExecucao,{\"Unitário\",\"Global\"},0),IF($A50=\"S\",ROUND(P50,arredunit),\"\"),ROUND(R50,arredtot)),\"\")","v":""},null,null,null,0]
["S",0,1,5,1,0,2,0,0,3,"Serviço","1.5.1.2.","ASSENTAMENTO DE GUIA (MEIO-FIO) EM TRECHO RETO, CONFECCIONADA EM CONCRETO PRÉ-FABRICADO, DIMENSÕES 100X15X13X30 CM (COMPRIMENTO X BASE INFERIOR X BASE SUPERIOR X ALTURA), PARA VIAS URBANAS (USO VIÁRIO). AF_06/2016","M",196.9,40.28,7931.13,7931.13,0,0,0,0,0,0,null,null,null,null,null,null,null,null,null,null,null,null,null,null,null,null,null,null,null,null,null,null,null,null,null,null,0,0,0,0,0,0,null,"1.5.1.2.",null,"ASSENTAMENTO DE GUIA (MEIO-FIO) EM TRECHO RETO, CONFECCIONADA EM CONCRETO PRÉ-FABRICADO, DIMENSÕES 100X15X13X30 CM (COMPRIMENTO X BASE INFERIOR X BASE SUPERIOR X ALTURA), PARA VIAS URBANAS (USO VIÁRIO). AF_06/2016","M",null,{"$f":"IF(BR51>0,CHOOSE(MATCH(RegimeExecucao,{\"Unitário\",\"Global\"},0),IF($A51=\"S\",BR51/BN51,\"\"),(BR51/BN51)*100),\"\")","v":""},null,null,{"$f":"IF(BR51>0,CHOOSE(MATCH(RegimeExecucao,{\"Unitário\",\"Global\"},0),IF($A51=\"S\",ROUND(P51,arredunit),\"\"),ROUND(R51,arredtot)),\"\")","v":""},null,null,null,0]
["S",0,1,5,1,0,3,0,0,3,"Serviço","1.5.1.3.","EXECUÇÃO DE SARJETA DE CONCRETO USINADO, MOLDADA  IN LOCO  EM TRECHO RETO, 30 CM BASE X 15 CM ALTURA. AF_06/2016","M",188.64,41.21,7773.85,7773.85,0,0,0,0,0,0,null,null,null,null,null,null,null,null,null,null,null,null,null,null,null,null,null,null,null,null,null,null,null,null,null,null,0,0,0,0,0,0,null,"1.5.1.3.",null,"EXECUÇÃO DE SARJETA DE CONCRETO USINADO, MOLDADA  IN LOCO  EM TRECHO RETO, 30 CM BASE X 15 CM ALTURA. AF_06/2016","M",null,{"$f":"IF(BR52>0,CHOOSE(MATCH(RegimeExecucao,{\"Unitário\",\"Global\"},0),IF($A52=\"S\",BR52/BN52,\"\"),(BR52/BN52)*100),\"\")","v":""},null,null,{"$f":"IF(BR52>0,CHOOSE(MATCH(RegimeExecucao,{\"Unitário\",\"Global\"},0),IF($A52=\"S\",ROUND(P52,arredunit),\"\"),ROUND(R52,arredtot)),\"\")","v":""},null,null,null,0]
["S",0,1,5,1,0,4,0,0,3,"Serviço","1.5.1.4.","PAVIMENTO EM PARALELEPIPEDO SOBRE COLCHAO DE AREIA REJUNTADO COM ARGAMASSA DE CIMENTO E AREIA NO TRAÇO 1:3 (PEDRAS PEQUENAS 30 A 35 PECAS POR M2)","M2",415.01,61.22,25406.91,25406.91,0,0,0,0,0,0,null,null,null,null,null,null,null,null,null,null,null,null,null,null,null,null,null,null,null,null,null,null,null,null,null,null,0,0,0,0,0,0,null,"1.5.1.4.",null,"PAVIMENTO EM PARALELEPIPEDO SOBRE COLCHAO DE AREIA REJUNTADO COM ARGAMASSA DE CIMENTO E AREIA NO TRAÇO 1:3 (PEDRAS PEQUENAS 30 A 35 PECAS POR M2)","M2",null,{"$f":"IF(BR53>0,CHOOSE(MATCH(RegimeExecucao,{\"Unitário\",\"Global\"},0),IF($A53=\"S\",BR53/BN53,\"\"),(BR53/BN53)*100),\"\")","v":""},null,null,{"$f":"IF(BR53>0,CHOOSE(MATCH(RegimeExecucao,{\"Unitário\",\"Global\"},0),IF($A53=\"S\",ROUND(P53,arredunit),\"\"),ROUND(R53,arredtot)),\"\")","v":""},null,null,null,0]
[3,4,1,5,2,0,0,4,{"$error":"#N/A"},2,"Nível 3","1.5.2.","CALÇADA","",0,0,15886.36,15886.36,0,0,0,0,0,0,null,null,null,null,null,null,null,null,null,null,null,null,null,null,null,null,null,null,null,null,null,null,null,null,null,null,0,0,0,0,0,0,null,"1.5.2.",null,"CALÇADA","",null,{"$f":"IF(BR54>0,CHOOSE(MATCH(RegimeExecucao,{\"Unitário\",\"Global\"},0),IF($A54=\"S\",BR54/BN54,\"\"),(BR54/BN54)*100),\"\")","v":""},null,null,{"$f":"IF(BR54>0,CHOOSE(MATCH(RegimeExecucao,{\"Unitário\",\"Global\"},0),IF($A54=\"S\",ROUND(P54,arredunit),\"\"),ROUND(R54,arredtot)),\"\")","v":""},null,null,null,0]
["S",0,1,5,2,0,1,0,0,3,"Serviço","1.5.2.1.","PISO PODOTATIL DE CONCRETO - DIRECIONAL E ALERTA, *40 X 40 X 2,5* CM","M2",14.4,90.58,1304.3499999999999,1304.3499999999999,0,0,0,0,0,0,null,null,null,null,null,null,null,null,null,null,null,null,null,null,null,null,null,null,null,null,null,null,null,null,null,null,0,0,0,0,0,0,null,"1.5.2.1.",null,"PISO PODOTATIL DE CONCRETO - DIRECIONAL E ALERTA, *40 X 40 X 2,5* CM","M2",null,{"$f":"IF(BR55>0,CHOOSE(MATCH(RegimeExecucao,{\"Unitário\",\"Global\"},0),IF($A55=\"S\",BR55/BN55,\"\"),(BR55/BN55)*100),\"\")","v":""},null,null,{"$f":"IF(BR55>0,CHOOSE(MATCH(RegimeExecucao,{\"Unitário\",\"Global\"},0),IF($A55=\"S\",ROUND(P55,arredunit),\"\"),ROUND(R55,arredtot)),\"\")","v":""},null,null,null,0]
["S",0,1,5,2,0,2,0,0,3,"Serviço","1.5.2.2.","ALVENARIA DE EMBASAMENTO EM TIJOLOS CERAMICOS MACICOS 5X10X20CM, ASSENTADO  COM ARGAMASSA TRACO 1:2:8 (CIMENTO, CAL E AREIA)","M3",3.6,696.86,2508.6999999999998,2508.6999999999998,0,0,0,0,0,0,null,null,null,null,null,null,null,null,null,null,null,null,null,null,null,null,null,null,null,null,null,null,null,null,null,null,0,0,0,0,0,0,null,"1.5.2.2.",null,"ALVENARIA DE EMBASAMENTO EM TIJOLOS CERAMICOS MACICOS 5X10X20CM, ASSENTADO  COM ARGAMASSA TRACO 1:2:8 (CIMENTO, CAL E AREIA)","M3",null,{"$f":"IF(BR56>0,CHOOSE(MATCH(RegimeExecucao,{\"Unitário\",\"Global\"},0),IF($A56=\"S\",BR56/BN56,\"\"),(BR56/BN56)*100),\"\")","v":""},null,null,{"$f":"IF(BR56>0,CHOOSE(MATCH(RegimeExecucao,{\"Unitário\",\"Global\"},0),IF($A56=\"S\",ROUND(P56,arredunit),\"\"),ROUND(R56,arredtot)),\"\")","v":""},null,null,null,0]
["S",0,1,5,2,0,3,0,0,3,"Serviço","1.5.2.3.","EXECUÇÃO DE PASSEIO (CALÇADA) OU PISO DE CONCRETO COM CONCRETO MOLDADO IN LOCO, FEITO EM OBRA, ACABAMENTO CONVENCIONAL, NÃO ARMADO. AF_07/2016","M3",18.64,647.71,12073.31,12073.31,0,0,0,0,0,0,null,null,null,null,null,null,null,null,null,null,null,null,null,null,null,null,null,null,null,null,null,null,null,null,null,null,0,0,0,0,0,0,null,"1.5.2.3.",null,"EXECUÇÃO DE PASSEIO (CALÇADA) OU PISO DE CONCRETO COM CONCRETO MOLDADO IN LOCO, FEITO EM OBRA, ACABAMENTO CONVENCIONAL, NÃO ARMADO. AF_07/2016","M3",null,{"$f":"IF(BR57>0,CHOOSE(MATCH(RegimeExecucao,{\"Unitário\",\"Global\"},0),IF($A57=\"S\",BR57/BN57,\"\"),(BR57/BN57)*100),\"\")","v":""},null,null,{"$f":"IF(BR57>0,CHOOSE(MATCH(RegimeExecucao,{\"Unitário\",\"Global\"},0),IF($A57=\"S\",ROUND(P57,arredunit),\"\"),ROUND(R57,arredtot)),\"\")","v":""},null,null,null,0]
[2,10,1,6,0,0,0,66,10,1,"Nível 2","1.6.","RUA JOSÉ BARBOSA DE ANDRADE FILHO","",0,0,{"$f":"Q59+Q64","v":52286.479999999996},52286.48,0,0,0,0,0,0,null,null,null,null,null,null,null,null,null,null,null,null,null,null,null,null,null,null,null,null,null,null,null,null,null,null,0,0,0,0,0,0,null,"1.6.",null,"RUA JOSÉ BARBOSA DE ANDRADE FILHO","",null,{"$f":"IF(BR58>0,CHOOSE(MATCH(RegimeExecucao,{\"Unitário\",\"Global\"},0),IF($A58=\"S\",BR58/BN58,\"\"),(BR58/BN58)*100),\"\")","v":""},null,null,{"$f":"IF(BR58>0,CHOOSE(MATCH(RegimeExecucao,{\"Unitário\",\"Global\"},0),IF($A58=\"S\",ROUND(P58,arredunit),\"\"),ROUND(R58,arredtot)),\"\")","v":""},null,null,null,0]
[3,5,1,6,1,0,0,9,5,2,"Nível 3","1.6.1.","PAVIMENTAÇÃO","",0,0,35934.35,35934.35,0,0,0,0,0,0,null,null,null,null,null,null,null,null,null,null,null,null,null,null,null,null,null,null,null,null,null,null,null,null,null,null,0,0,0,0,0,0,null,"1.6.1.",null,"PAVIMENTAÇÃO","",null,{"$f":"IF(BR59>0,CHOOSE(MATCH(RegimeExecucao,{\"Unitário\",\"Global\"},0),IF($A59=\"S\",BR59/BN59,\"\"),(BR59/BN59)*100),\"\")","v":""},null,null,{"$f":"IF(BR59>0,CHOOSE(MATCH(RegimeExecucao,{\"Unitário\",\"Global\"},0),IF($A59=\"S\",ROUND(P59,arredunit),\"\"),ROUND(R59,arredtot)),\"\")","v":""},null,null,null,0]
["S",0,1,6,1,0,1,0,0,3,"Serviço","1.6.1.1.","REGULARIZACAO E COMPACTACAO DE SUBLEITO ATE 20 CM DE ESPESSURA","M2",374.56,1.7,636.75,636.75,0,0,0,0,0,0,null,null,null,null,null,null,null,null,null,null,null,null,null,null,null,null,null,null,null,null,null,null,null,null,null,null,0,0,0,0,0,0,null,"1.6.1.1.",null,"REGULARIZACAO E COMPACTACAO DE SUBLEITO ATE 20 CM DE ESPESSURA","M2",null,{"$f":"IF(BR60>0,CHOOSE(MATCH(RegimeExecucao,{\"Unitário\",\"Global\"},0),IF($A60=\"S\",BR60/BN60,\"\"),(BR60/BN60)*100),\"\")","v":""},null,null,{"$f":"IF(BR60>0,CHOOSE(MATCH(RegimeExecucao,{\"Unitário\",\"Global\"},0),IF($A60=\"S\",ROUND(P60,arredunit),\"\"),ROUND(R60,arredtot)),\"\")","v":""},null,null,null,0]
["S",0,1,6,1,0,2,0,0,3,"Serviço","1.6.1.2.","ASSENTAMENTO DE GUIA (MEIO-FIO) EM TRECHO RETO, CONFECCIONADA EM CONCRETO PRÉ-FABRICADO, DIMENSÕES 100X15X13X30 CM (COMPRIMENTO X BASE INFERIOR X BASE SUPERIOR X ALTURA), PARA VIAS URBANAS (USO VIÁRIO). AF_06/2016","M",198.54,40.28,7997.19,7997.19,0,0,0,0,0,0,null,null,null,null,null,null,null,null,null,null,null,null,null,null,null,null,null,null,null,null,null,null,null,null,null,null,0,0,0,0,0,0,null,"1.6.1.2.",null,"ASSENTAMENTO DE GUIA (MEIO-FIO) EM TRECHO RETO, CONFECCIONADA EM CONCRETO PRÉ-FABRICADO, DIMENSÕES 100X15X13X30 CM (COMPRIMENTO X BASE INFERIOR X BASE SUPERIOR X ALTURA), PARA VIAS URBANAS (USO VIÁRIO). AF_06/2016","M",null,{"$f":"IF(BR61>0,CHOOSE(MATCH(RegimeExecucao,{\"Unitário\",\"Global\"},0),IF($A61=\"S\",BR61/BN61,\"\"),(BR61/BN61)*100),\"\")","v":""},null,null,{"$f":"IF(BR61>0,CHOOSE(MATCH(RegimeExecucao,{\"Unitário\",\"Global\"},0),IF($A61=\"S\",ROUND(P61,arredunit),\"\"),ROUND(R61,arredtot)),\"\")","v":""},null,null,null,0]
["S",0,1,6,1,0,3,0,0,3,"Serviço","1.6.1.3.","EXECUÇÃO DE SARJETA DE CONCRETO USINADO, MOLDADA  IN LOCO  EM TRECHO RETO, 30 CM BASE X 15 CM ALTURA. AF_06/2016","M",191.28,41.21,7882.65,7882.65,0,0,0,0,0,0,null,null,null,null,null,null,null,null,null,null,null,null,null,null,null,null,null,null,null,null,null,null,null,null,null,null,0,0,0,0,0,0,null,"1.6.1.3.",null,"EXECUÇÃO DE SARJETA DE CONCRETO USINADO, MOLDADA  IN LOCO  EM TRECHO RETO, 30 CM BASE X 15 CM ALTURA. AF_06/2016","M",null,{"$f":"IF(BR62>0,CHOOSE(MATCH(RegimeExecucao,{\"Unitário\",\"Global\"},0),IF($A62=\"S\",BR62/BN62,\"\"),(BR62/BN62)*100),\"\")","v":""},null,null,{"$f":"IF(BR62>0,CHOOSE(MATCH(RegimeExecucao,{\"Unitário\",\"Global\"},0),IF($A62=\"S\",ROUND(P62,arredunit),\"\"),ROUND(R62,arredtot)),\"\")","v":""},null,null,null,0]
["S",0,1,6,1,0,4,0,0,3,"Serviço","1.6.1.4.","PAVIMENTO EM PARALELEPIPEDO SOBRE COLCHAO DE AREIA REJUNTADO COM ARGAMASSA DE CIMENTO E AREIA NO TRAÇO 1:3 (PEDRAS PEQUENAS 30 A 35 PECAS POR M2)","M2",317.18,61.22,19417.759999999998,19417.759999999998,0,0,0,0,0,0,null,null,null,null,null,null,null,null,null,null,null,null,null,null,null,null,null,null,null,null,null,null,null,null,null,null,0,0,0,0,0,0,null,"1.6.1.4.",null,"PAVIMENTO EM PARALELEPIPEDO SOBRE COLCHAO DE AREIA REJUNTADO COM ARGAMASSA DE CIMENTO E AREIA NO TRAÇO 1:3 (PEDRAS PEQUENAS 30 A 35 PECAS POR M2)","M2",null,{"$f":"IF(BR63>0,CHOOSE(MATCH(RegimeExecucao,{\"Unitário\",\"Global\"},0),IF($A63=\"S\",BR63/BN63,\"\"),(BR63/BN63)*100),\"\")","v":""},null,null,{"$f":"IF(BR63>0,CHOOSE(MATCH(RegimeExecucao,{\"Unitário\",\"Global\"},0),IF($A63=\"S\",ROUND(P63,arredunit),\"\"),ROUND(R63,arredtot)),\"\")","v":""},null,null,null,0]
[3,4,1,6,2,0,0,4,{"$error":"#N/A"},2,"Nível 3","1.6.2.","CALÇADA","",0,0,16352.13,16352.13,0,0,0,0,0,0,null,null,null,null,null,null,null,null,null,null,null,null,null,null,null,null,null,null,null,null,null,null,null,null,null,null,0,0,0,0,0,0,null,"1.6.2.",null,"CALÇADA","",null,{"$f":"IF(BR64>0,CHOOSE(MATCH(RegimeExecucao,{\"Unitário\",\"Global\"},0),IF($A64=\"S\",BR64/BN64,\"\"),(BR64/BN64)*100),\"\")","v":""},null,null,{"$f":"IF(BR64>0,CHOOSE(MATCH(RegimeExecucao,{\"Unitário\",\"Global\"},0),IF($A64=\"S\",ROUND(P64,arredunit),\"\"),ROUND(R64,arredtot)),\"\")","v":""},null,null,null,0]
["S",0,1,6,2,0,1,0,0,3,"Serviço","1.6.2.1.","PISO PODOTATIL DE CONCRETO - DIRECIONAL E ALERTA, *40 X 40 X 2,5* CM","M2",14.4,90.58,1304.3499999999999,1304.3499999999999,0,0,0,0,0,0,null,null,null,null,null,null,null,null,null,null,null,null,null,null,null,null,null,null,null,null,null,null,null,null,null,null,0,0,0,0,0,0,null,"1.6.2.1.",null,"PISO PODOTATIL DE CONCRETO - DIRECIONAL E ALERTA, *40 X 40 X 2,5* CM","M2",null,{"$f":"IF(BR65>0,CHOOSE(MATCH(RegimeExecucao,{\"Unitário\",\"Global\"},0),IF($A65=\"S\",BR65/BN65,\"\"),(BR65/BN65)*100),\"\")","v":""},null,null,{"$f":"IF(BR65>0,CHOOSE(MATCH(RegimeExecucao,{\"Unitário\",\"Global\"},0),IF($A65=\"S\",ROUND(P65,arredunit),\"\"),ROUND(R65,arredtot)),\"\")","v":""},null,null,null,0]
["S",0,1,6,2,0,2,0,0,3,"Serviço","1.6.2.2.","ALVENARIA DE EMBASAMENTO EM TIJOLOS CERAMICOS MACICOS 5X10X20CM, ASSENTADO  COM ARGAMASSA TRACO 1:2:8 (CIMENTO, CAL E AREIA)","M3",3.72,696.86,2592.3200000000002,2592.3200000000002,0,0,0,0,0,0,null,null,null,null,null,null,null,null,null,null,null,null,null,null,null,null,null,null,null,null,null,null,null,null,null,null,0,0,0,0,0,0,null,"1.6.2.2.",null,"ALVENARIA DE EMBASAMENTO EM TIJOLOS CERAMICOS MACICOS 5X10X20CM, ASSENTADO  COM ARGAMASSA TRACO 1:2:8 (CIMENTO, CAL E AREIA)","M3",null,{"$f":"IF(BR66>0,CHOOSE(MATCH(RegimeExecucao,{\"Unitário\",\"Global\"},0),IF($A66=\"S\",BR66/BN66,\"\"),(BR66/BN66)*100),\"\")","v":""},null,null,{"$f":"IF(BR66>0,CHOOSE(MATCH(RegimeExecucao,{\"Unitário\",\"Global\"},0),IF($A66=\"S\",ROUND(P66,arredunit),\"\"),ROUND(R66,arredtot)),\"\")","v":""},null,null,null,0]
["S",0,1,6,2,0,3,0,0,3,"Serviço","1.6.2.3.","EXECUÇÃO DE PASSEIO (CALÇADA) OU PISO DE CONCRETO COM CONCRETO MOLDADO IN LOCO, FEITO EM OBRA, ACABAMENTO CONVENCIONAL, NÃO ARMADO. AF_07/2016","M3",19.23,647.71,12455.46,12455.46,0,0,0,0,0,0,null,null,null,null,null,null,null,null,null,null,null,null,null,null,null,null,null,null,null,null,null,null,null,null,null,null,0,0,0,0,0,0,null,"1.6.2.3.",null,"EXECUÇÃO DE PASSEIO (CALÇADA) OU PISO DE CONCRETO COM CONCRETO MOLDADO IN LOCO, FEITO EM OBRA, ACABAMENTO CONVENCIONAL, NÃO ARMADO. AF_07/2016","M3",null,{"$f":"IF(BR67>0,CHOOSE(MATCH(RegimeExecucao,{\"Unitário\",\"Global\"},0),IF($A67=\"S\",BR67/BN67,\"\"),(BR67/BN67)*100),\"\")","v":""},null,null,{"$f":"IF(BR67>0,CHOOSE(MATCH(RegimeExecucao,{\"Unitário\",\"Global\"},0),IF($A67=\"S\",ROUND(P67,arredunit),\"\"),ROUND(R67,arredtot)),\"\")","v":""},null,null,null,0]
[2,10,1,7,0,0,0,56,10,1,"Nível 2","1.7.","RUA DANIEL FRANCISCO GOMES","",0,0,54022.64,54022.64,0,0,0,0,0,0,null,null,null,null,null,null,null,null,null,null,null,null,null,null,null,null,null,null,null,null,null,null,null,null,null,null,0,0,0,0,0,0,null,"1.7.",null,"RUA DANIEL FRANCISCO GOMES","",null,{"$f":"IF(BR68>0,CHOOSE(MATCH(RegimeExecucao,{\"Unitário\",\"Global\"},0),IF($A68=\"S\",BR68/BN68,\"\"),(BR68/BN68)*100),\"\")","v":""},null,null,{"$f":"IF(BR68>0,CHOOSE(MATCH(RegimeExecucao,{\"Unitário\",\"Global\"},0),IF($A68=\"S\",ROUND(P68,arredunit),\"\"),ROUND(R68,arredtot)),\"\")","v":""},null,null,null,0]
[3,5,1,7,1,0,0,9,5,2,"Nível 3","1.7.1.","PAVIMENTAÇÃO","",0,0,37283.93,37283.93,0,0,0,0,0,0,null,null,null,null,null,null,null,null,null,null,null,null,null,null,null,null,null,null,null,null,null,null,null,null,null,null,0,0,0,0,0,0,null,"1.7.1.",null,"PAVIMENTAÇÃO","",null,{"$f":"IF(BR69>0,CHOOSE(MATCH(RegimeExecucao,{\"Unitário\",\"Global\"},0),IF($A69=\"S\",BR69/BN69,\"\"),(BR69/BN69)*100),\"\")","v":""},null,null,{"$f":"IF(BR69>0,CHOOSE(MATCH(RegimeExecucao,{\"Unitário\",\"Global\"},0),IF($A69=\"S\",ROUND(P69,arredunit),\"\"),ROUND(R69,arredtot)),\"\")","v":""},null,null,null,0]
["S",0,1,7,1,0,1,0,0,3,"Serviço","1.7.1.1.","REGULARIZACAO E COMPACTACAO DE SUBLEITO ATE 20 CM DE ESPESSURA","M2",391.72,1.7,665.92,665.92,0,0,0,0,0,0,null,null,null,null,null,null,null,null,null,null,null,null,null,null,null,null,null,null,null,null,null,null,null,null,null,null,0,0,0,0,0,0,null,"1.7.1.1.",null,"REGULARIZACAO E COMPACTACAO DE SUBLEITO ATE 20 CM DE ESPESSURA","M2",null,{"$f":"IF(BR70>0,CHOOSE(MATCH(RegimeExecucao,{\"Unitário\",\"Global\"},0),IF($A70=\"S\",BR70/BN70,\"\"),(BR70/BN70)*100),\"\")","v":""},null,null,{"$f":"IF(BR70>0,CHOOSE(MATCH(RegimeExecucao,{\"Unitário\",\"Global\"},0),IF($A70=\"S\",ROUND(P70,arredunit),\"\"),ROUND(R70,arredtot)),\"\")","v":""},null,null,null,0]
["S",0,1,7,1,0,2,0,0,3,"Serviço","1.7.1.2.","ASSENTAMENTO DE GUIA (MEIO-FIO) EM TRECHO RETO, CONFECCIONADA EM CONCRETO PRÉ-FABRICADO, DIMENSÕES 100X15X13X30 CM (COMPRIMENTO X BASE INFERIOR X BASE SUPERIOR X ALTURA), PARA VIAS URBANAS (USO VIÁRIO). AF_06/2016","M",204.92,40.28,8254.18,8254.18,0,0,0,0,0,0,null,null,null,null,null,null,null,null,null,null,null,null,null,null,null,null,null,null,null,null,null,null,null,null,null,null,0,0,0,0,0,0,null,"1.7.1.2.",null,"ASSENTAMENTO DE GUIA (MEIO-FIO) EM TRECHO RETO, CONFECCIONADA EM CONCRETO PRÉ-FABRICADO, DIMENSÕES 100X15X13X30 CM (COMPRIMENTO X BASE INFERIOR X BASE SUPERIOR X ALTURA), PARA VIAS URBANAS (USO VIÁRIO). AF_06/2016","M",null,{"$f":"IF(BR71>0,CHOOSE(MATCH(RegimeExecucao,{\"Unitário\",\"Global\"},0),IF($A71=\"S\",BR71/BN71,\"\"),(BR71/BN71)*100),\"\")","v":""},null,null,{"$f":"IF(BR71>0,CHOOSE(MATCH(RegimeExecucao,{\"Unitário\",\"Global\"},0),IF($A71=\"S\",ROUND(P71,arredunit),\"\"),ROUND(R71,arredtot)),\"\")","v":""},null,null,null,0]
["S",0,1,7,1,0,3,0,0,3,"Serviço","1.7.1.3.","EXECUÇÃO DE SARJETA DE CONCRETO USINADO, MOLDADA  IN LOCO  EM TRECHO RETO, 30 CM BASE X 15 CM ALTURA. AF_06/2016","M",191.86,41.21,7906.55,7906.55,0,0,0,0,0,0,null,null,null,null,null,null,null,null,null,null,null,null,null,null,null,null,null,null,null,null,null,null,null,null,null,null,0,0,0,0,0,0,null,"1.7.1.3.",null,"EXECUÇÃO DE SARJETA DE CONCRETO USINADO, MOLDADA  IN LOCO  EM TRECHO RETO, 30 CM BASE X 15 CM ALTURA. AF_06/2016","M",null,{"$f":"IF(BR72>0,CHOOSE(MATCH(RegimeExecucao,{\"Unitário\",\"Global\"},0),IF($A72=\"S\",BR72/BN72,\"\"),(BR72/BN72)*100),\"\")","v":""},null,null,{"$f":"IF(BR72>0,CHOOSE(MATCH(RegimeExecucao,{\"Unitário\",\"Global\"},0),IF($A72=\"S\",ROUND(P72,arredunit),\"\"),ROUND(R72,arredtot)),\"\")","v":""},null,null,null,0]
["S",0,1,7,1,0,4,0,0,3,"Serviço","1.7.1.4.","PAVIMENTO EM PARALELEPIPEDO SOBRE COLCHAO DE AREIA REJUNTADO COM ARGAMASSA DE CIMENTO E AREIA NO TRAÇO 1:3 (PEDRAS PEQUENAS 30 A 35 PECAS POR M2)","M2",334.16,61.22,20457.28,20457.28,0,0,0,0,0,0,null,null,null,null,null,null,null,null,null,null,null,null,null,null,null,null,null,null,null,null,null,null,null,null,null,null,0,0,0,0,0,0,null,"1.7.1.4.",null,"PAVIMENTO EM PARALELEPIPEDO SOBRE COLCHAO DE AREIA REJUNTADO COM ARGAMASSA DE CIMENTO E AREIA NO TRAÇO 1:3 (PEDRAS PEQUENAS 30 A 35 PECAS POR M2)","M2",null,{"$f":"IF(BR73>0,CHOOSE(MATCH(RegimeExecucao,{\"Unitário\",\"Global\"},0),IF($A73=\"S\",BR73/BN73,\"\"),(BR73/BN73)*100),\"\")","v":""},null,null,{"$f":"IF(BR73>0,CHOOSE(MATCH(RegimeExecucao,{\"Unitário\",\"Global\"},0),IF($A73=\"S\",ROUND(P73,arredunit),\"\"),ROUND(R73,arredtot)),\"\")","v":""},null,null,null,0]
[3,4,1,7,2,0,0,4,{"$error":"#N/A"},2,"Nível 3","1.7.2.","CALÇADA","",0,0,16738.71,16738.71,0,0,0,0,0,0,null,null,null,null,null,null,null,null,null,null,null,null,null,null,null,null,null,null,null,null,null,null,null,null,null,null,0,0,0,0,0,0,null,"1.7.2.",null,"CALÇADA","",null,{"$f":"IF(BR74>0,CHOOSE(MATCH(RegimeExecucao,{\"Unitário\",\"Global\"},0),IF($A74=\"S\",BR74/BN74,\"\"),(BR74/BN74)*100),\"\")","v":""},null,null,{"$f":"IF(BR74>0,CHOOSE(MATCH(RegimeExecucao,{\"Unitário\",\"Global\"},0),IF($A74=\"S\",ROUND(P74,arredunit),\"\"),ROUND(R74,arredtot)),\"\")","v":""},null,null,null,0]
["S",0,1,7,2,0,1,0,0,3,"Serviço","1.7.2.1.","PISO PODOTATIL DE CONCRETO - DIRECIONAL E ALERTA, *40 X 40 X 2,5* CM","M2",14.4,90.58,1304.3499999999999,1304.3499999999999,0,0,0,0,0,0,null,null,null,null,null,null,null,null,null,null,null,null,null,null,null,null,null,null,null,null,null,null,null,null,null,null,0,0,0,0,0,0,null,"1.7.2.1.",null,"PISO PODOTATIL DE CONCRETO - DIRECIONAL E ALERTA, *40 X 40 X 2,5* CM","M2",null,{"$f":"IF(BR75>0,CHOOSE(MATCH(RegimeExecucao,{\"Unitário\",\"Global\"},0),IF($A75=\"S\",BR75/BN75,\"\"),(BR75/BN75)*100),\"\")","v":""},null,null,{"$f":"IF(BR75>0,CHOOSE(MATCH(RegimeExecucao,{\"Unitário\",\"Global\"},0),IF($A75=\"S\",ROUND(P75,arredunit),\"\"),ROUND(R75,arredtot)),\"\")","v":""},null,null,null,0]
["S",0,1,7,2,0,2,0,0,3,"Serviço","1.7.2.2.","ALVENARIA DE EMBASAMENTO EM TIJOLOS CERAMICOS MACICOS 5X10X20CM, ASSENTADO  COM ARGAMASSA TRACO 1:2:8 (CIMENTO, CAL E AREIA)","M3",3.81,696.86,2655.04,2655.04,0,0,0,0,0,0,null,null,null,null,null,null,null,null,null,null,null,null,null,null,null,null,null,null,null,null,null,null,null,null,null,null,0,0,0,0,0,0,null,"1.7.2.2.",null,"ALVENARIA DE EMBASAMENTO EM TIJOLOS CERAMICOS MACICOS 5X10X20CM, ASSENTADO  COM ARGAMASSA TRACO 1:2:8 (CIMENTO, CAL E AREIA)","M3",null,{"$f":"IF(BR76>0,CHOOSE(MATCH(RegimeExecucao,{\"Unitário\",\"Global\"},0),IF($A76=\"S\",BR76/BN76,\"\"),(BR76/BN76)*100),\"\")","v":""},null,null,{"$f":"IF(BR76>0,CHOOSE(MATCH(RegimeExecucao,{\"Unitário\",\"Global\"},0),IF($A76=\"S\",ROUND(P76,arredunit),\"\"),ROUND(R76,arredtot)),\"\")","v":""},null,null,null,0]
["S",0,1,7,2,0,3,0,0,3,"Serviço","1.7.2.3.","EXECUÇÃO DE PASSEIO (CALÇADA) OU PISO DE CONCRETO COM CONCRETO MOLDADO IN LOCO, FEITO EM OBRA, ACABAMENTO CONVENCIONAL, NÃO ARMADO. AF_07/2016","M3",19.73,647.71,12779.32,12779.32,0,0,0,0,0,0,null,null,null,null,null,null,null,null,null,null,null,null,null,null,null,null,null,null,null,null,null,null,null,null,null,null,0,0,0,0,0,0,null,"1.7.2.3.",null,"EXECUÇÃO DE PASSEIO (CALÇADA) OU PISO DE CONCRETO COM CONCRETO MOLDADO IN LOCO, FEITO EM OBRA, ACABAMENTO CONVENCIONAL, NÃO ARMADO. AF_07/2016","M3",null,{"$f":"IF(BR77>0,CHOOSE(MATCH(RegimeExecucao,{\"Unitário\",\"Global\"},0),IF($A77=\"S\",BR77/BN77,\"\"),(BR77/BN77)*100),\"\")","v":""},null,null,{"$f":"IF(BR77>0,CHOOSE(MATCH(RegimeExecucao,{\"Unitário\",\"Global\"},0),IF($A77=\"S\",ROUND(P77,arredunit),\"\"),ROUND(R77,arredtot)),\"\")","v":""},null,null,null,0]
[2,10,1,8,0,0,0,46,10,1,"Nível 2","1.8.","RUA PROJETADA 02","",0,0,123238.83,123238.83,0,0,0,0,0,0,null,null,null,null,null,null,null,null,null,null,null,null,null,null,null,null,null,null,null,null,null,null,null,null,null,null,0,0,0,0,0,0,null,"1.8.",null,"RUA PROJETADA 02","",null,{"$f":"IF(BR78>0,CHOOSE(MATCH(RegimeExecucao,{\"Unitário\",\"Global\"},0),IF($A78=\"S\",BR78/BN78,\"\"),(BR78/BN78)*100),\"\")","v":""},null,null,{"$f":"IF(BR78>0,CHOOSE(MATCH(RegimeExecucao,{\"Unitário\",\"Global\"},0),IF($A78=\"S\",ROUND(P78,arredunit),\"\"),ROUND(R78,arredtot)),\"\")","v":""},null,null,null,0]
[3,5,1,8,1,0,0,9,5,2,"Nível 3","1.8.1.","PAVIMENTAÇÃO","",0,0,90918.68,90918.68,0,0,0,0,0,0,null,null,null,null,null,null,null,null,null,null,null,null,null,null,null,null,null,null,null,null,null,null,null,null,null,null,0,0,0,0,0,0,null,"1.8.1.",null,"PAVIMENTAÇÃO","",null,{"$f":"IF(BR79>0,CHOOSE(MATCH(RegimeExecucao,{\"Unitário\",\"Global\"},0),IF($A79=\"S\",BR79/BN79,\"\"),(BR79/BN79)*100),\"\")","v":""},null,null,{"$f":"IF(BR79>0,CHOOSE(MATCH(RegimeExecucao,{\"Unitário\",\"Global\"},0),IF($A79=\"S\",ROUND(P79,arredunit),\"\"),ROUND(R79,arredtot)),\"\")","v":""},null,null,null,0]
["S",0,1,8,1,0,1,0,0,3,"Serviço","1.8.1.1.","REGULARIZACAO E COMPACTACAO DE SUBLEITO ATE 20 CM DE ESPESSURA","M2",979.02,1.7,1664.33,1664.33,0,0,0,0,0,0,null,null,null,null,null,null,null,null,null,null,null,null,null,null,null,null,null,null,null,null,null,null,null,null,null,null,0,0,0,0,0,0,null,"1.8.1.1.",null,"REGULARIZACAO E COMPACTACAO DE SUBLEITO ATE 20 CM DE ESPESSURA","M2",null,{"$f":"IF(BR80>0,CHOOSE(MATCH(RegimeExecucao,{\"Unitário\",\"Global\"},0),IF($A80=\"S\",BR80/BN80,\"\"),(BR80/BN80)*100),\"\")","v":""},null,null,{"$f":"IF(BR80>0,CHOOSE(MATCH(RegimeExecucao,{\"Unitário\",\"Global\"},0),IF($A80=\"S\",ROUND(P80,arredunit),\"\"),ROUND(R80,arredtot)),\"\")","v":""},null,null,null,0]
["S",0,1,8,1,0,2,0,0,3,"Serviço","1.8.1.2.","ASSENTAMENTO DE GUIA (MEIO-FIO) EM TRECHO RETO, CONFECCIONADA EM CONCRETO PRÉ-FABRICADO, DIMENSÕES 100X15X13X30 CM (COMPRIMENTO X BASE INFERIOR X BASE SUPERIOR X ALTURA), PARA VIAS URBANAS (USO VIÁRIO). AF_06/2016","M",470.18,40.28,18938.849999999999,18938.849999999999,0,0,0,0,0,0,null,null,null,null,null,null,null,null,null,null,null,null,null,null,null,null,null,null,null,null,null,null,null,null,null,null,0,0,0,0,0,0,null,"1.8.1.2.",null,"ASSENTAMENTO DE GUIA (MEIO-FIO) EM TRECHO RETO, CONFECCIONADA EM CONCRETO PRÉ-FABRICADO, DIMENSÕES 100X15X13X30 CM (COMPRIMENTO X BASE INFERIOR X BASE SUPERIOR X ALTURA), PARA VIAS URBANAS (USO VIÁRIO). AF_06/2016","M",null,{"$f":"IF(BR81>0,CHOOSE(MATCH(RegimeExecucao,{\"Unitário\",\"Global\"},0),IF($A81=\"S\",BR81/BN81,\"\"),(BR81/BN81)*100),\"\")","v":""},null,null,{"$f":"IF(BR81>0,CHOOSE(MATCH(RegimeExecucao,{\"Unitário\",\"Global\"},0),IF($A81=\"S\",ROUND(P81,arredunit),\"\"),ROUND(R81,arredtot)),\"\")","v":""},null,null,null,0]
["S",0,1,8,1,0,3,0,0,3,"Serviço","1.8.1.3.","EXECUÇÃO DE SARJETA DE CONCRETO USINADO, MOLDADA  IN LOCO  EM TRECHO RETO, 30 CM BASE X 15 CM ALTURA. AF_06/2016","M",454.39,41.21,18725.41,18725.41,0,0,0,0,0,0,null,null,null,null,null,null,null,null,null,null,null,null,null,null,null,null,null,null,null,null,null,null,null,null,null,null,0,0,0,0,0,0,null,"1.8.1.3.",null,"EXECUÇÃO DE SARJETA DE CONCRETO USINADO, MOLDADA  IN LOCO  EM TRECHO RETO, 30 CM BASE X 15 CM ALTURA. AF_06/2016","M",null,{"$f":"IF(BR82>0,CHOOSE(MATCH(RegimeExecucao,{\"Unitário\",\"Global\"},0),IF($A82=\"S\",BR82/BN82,\"\"),(BR82/BN82)*100),\"\")","v":""},null,null,{"$f":"IF(BR82>0,CHOOSE(MATCH(RegimeExecucao,{\"Unitário\",\"Global\"},0),IF($A82=\"S\",ROUND(P82,arredunit),\"\"),ROUND(R82,arredtot)),\"\")","v":""},null,null,null,0]
["S",0,1,8,1,0,4,0,0,3,"Serviço","1.8.1.4.","PAVIMENTO EM PARALELEPIPEDO SOBRE COLCHAO DE AREIA REJUNTADO COM ARGAMASSA DE CIMENTO E AREIA NO TRAÇO 1:3 (PEDRAS PEQUENAS 30 A 35 PECAS POR M2)","M2",842.7,61.22,51590.09,51590.09,0,0,0,0,0,0,null,null,null,null,null,null,null,null,null,null,null,null,null,null,null,null,null,null,null,null,null,null,null,null,null,null,0,0,0,0,0,0,null,"1.8.1.4.",null,"PAVIMENTO EM PARALELEPIPEDO SOBRE COLCHAO DE AREIA REJUNTADO COM ARGAMASSA DE CIMENTO E AREIA NO TRAÇO 1:3 (PEDRAS PEQUENAS 30 A 35 PECAS POR M2)","M2",null,{"$f":"IF(BR83>0,CHOOSE(MATCH(RegimeExecucao,{\"Unitário\",\"Global\"},0),IF($A83=\"S\",BR83/BN83,\"\"),(BR83/BN83)*100),\"\")","v":""},null,null,{"$f":"IF(BR83>0,CHOOSE(MATCH(RegimeExecucao,{\"Unitário\",\"Global\"},0),IF($A83=\"S\",ROUND(P83,arredunit),\"\"),ROUND(R83,arredtot)),\"\")","v":""},null,null,null,0]
[3,4,1,8,2,0,0,4,{"$error":"#N/A"},2,"Nível 3","1.8.2.","CALÇADA","",0,0,32320.15,32320.15,0,0,0,0,0,0,null,null,null,null,null,null,null,null,null,null,null,null,null,null,null,null,null,null,null,null,null,null,null,null,null,null,0,0,0,0,0,0,null,"1.8.2.",null,"CALÇADA","",null,{"$f":"IF(BR84>0,CHOOSE(MATCH(RegimeExecucao,{\"Unitário\",\"Global\"},0),IF($A84=\"S\",BR84/BN84,\"\"),(BR84/BN84)*100),\"\")","v":""},null,null,{"$f":"IF(BR84>0,CHOOSE(MATCH(RegimeExecucao,{\"Unitário\",\"Global\"},0),IF($A84=\"S\",ROUND(P84,arredunit),\"\"),ROUND(R84,arredtot)),\"\")","v":""},null,null,null,0]
["S",0,1,8,2,0,1,0,0,3,"Serviço","1.8.2.1.","PISO PODOTATIL DE CONCRETO - DIRECIONAL E ALERTA, *40 X 40 X 2,5* CM","M2",15.6,90.58,1413.05,1413.05,0,0,0,0,0,0,null,null,null,null,null,null,null,null,null,null,null,null,null,null,null,null,null,null,null,null,null,null,null,null,null,null,0,0,0,0,0,0,null,"1.8.2.1.",null,"PISO PODOTATIL DE CONCRETO - DIRECIONAL E ALERTA, *40 X 40 X 2,5* CM","M2",null,{"$f":"IF(BR85>0,CHOOSE(MATCH(RegimeExecucao,{\"Unitário\",\"Global\"},0),IF($A85=\"S\",BR85/BN85,\"\"),(BR85/BN85)*100),\"\")","v":""},null,null,{"$f":"IF(BR85>0,CHOOSE(MATCH(RegimeExecucao,{\"Unitário\",\"Global\"},0),IF($A85=\"S\",ROUND(P85,arredunit),\"\"),ROUND(R85,arredtot)),\"\")","v":""},null,null,null,0]
["S",0,1,8,2,0,2,0,0,3,"Serviço","1.8.2.2.","ALVENARIA DE EMBASAMENTO EM TIJOLOS CERAMICOS MACICOS 5X10X20CM, ASSENTADO  COM ARGAMASSA TRACO 1:2:8 (CIMENTO, CAL E AREIA)","M3",9.06,696.86,6313.55,6313.55,0,0,0,0,0,0,null,null,null,null,null,null,null,null,null,null,null,null,null,null,null,null,null,null,null,null,null,null,null,null,null,null,0,0,0,0,0,0,null,"1.8.2.2.",null,"ALVENARIA DE EMBASAMENTO EM TIJOLOS CERAMICOS MACICOS 5X10X20CM, ASSENTADO  COM ARGAMASSA TRACO 1:2:8 (CIMENTO, CAL E AREIA)","M3",null,{"$f":"IF(BR86>0,CHOOSE(MATCH(RegimeExecucao,{\"Unitário\",\"Global\"},0),IF($A86=\"S\",BR86/BN86,\"\"),(BR86/BN86)*100),\"\")","v":""},null,null,{"$f":"IF(BR86>0,CHOOSE(MATCH(RegimeExecucao,{\"Unitário\",\"Global\"},0),IF($A86=\"S\",ROUND(P86,arredunit),\"\"),ROUND(R86,arredtot)),\"\")","v":""},null,null,null,0]
["S",0,1,8,2,0,3,0,0,3,"Serviço","1.8.2.3.","EXECUÇÃO DE PASSEIO (CALÇADA) OU PISO DE CONCRETO COM CONCRETO MOLDADO IN LOCO, FEITO EM OBRA, ACABAMENTO CONVENCIONAL, NÃO ARMADO. AF_07/2016","M3",37.97,647.71,24593.55,24593.55,0,0,0,0,0,0,null,null,null,null,null,null,null,null,null,null,null,null,null,null,null,null,null,null,null,null,null,null,null,null,null,null,0,0,0,0,0,0,null,"1.8.2.3.",null,"EXECUÇÃO DE PASSEIO (CALÇADA) OU PISO DE CONCRETO COM CONCRETO MOLDADO IN LOCO, FEITO EM OBRA, ACABAMENTO CONVENCIONAL, NÃO ARMADO. AF_07/2016","M3",null,{"$f":"IF(BR87>0,CHOOSE(MATCH(RegimeExecucao,{\"Unitário\",\"Global\"},0),IF($A87=\"S\",BR87/BN87,\"\"),(BR87/BN87)*100),\"\")","v":""},null,null,{"$f":"IF(BR87>0,CHOOSE(MATCH(RegimeExecucao,{\"Unitário\",\"Global\"},0),IF($A87=\"S\",ROUND(P87,arredunit),\"\"),ROUND(R87,arredtot)),\"\")","v":""},null,null,null,0]
[2,10,1,9,0,0,0,36,10,1,"Nível 2","1.9.","RUA MARIA FERREIRA DE LIRA","",0,0,119178.74,119178.74,0,0,0,0,0,0,null,null,null,null,null,null,null,null,null,null,null,null,null,null,null,null,null,null,null,null,null,null,null,null,null,null,0,0,0,0,0,0,null,"1.9.",null,"RUA MARIA FERREIRA DE LIRA","",null,{"$f":"IF(BR88>0,CHOOSE(MATCH(RegimeExecucao,{\"Unitário\",\"Global\"},0),IF($A88=\"S\",BR88/BN88,\"\"),(BR88/BN88)*100),\"\")","v":""},null,null,{"$f":"IF(BR88>0,CHOOSE(MATCH(RegimeExecucao,{\"Unitário\",\"Global\"},0),IF($A88=\"S\",ROUND(P88,arredunit),\"\"),ROUND(R88,arredtot)),\"\")","v":""},null,null,null,0]
[3,5,1,9,1,0,0,9,5,2,"Nível 3","1.9.1.","PAVIMENTAÇÃO","",0,0,86745.44,86745.44,0,0,0,0,0,0,null,null,null,null,null,null,null,null,null,null,null,null,null,null,null,null,null,null,null,null,null,null,null,null,null,null,0,0,0,0,0,0,null,"1.9.1.",null,"PAVIMENTAÇÃO","",null,{"$f":"IF(BR89>0,CHOOSE(MATCH(RegimeExecucao,{\"Unitário\",\"Global\"},0),IF($A89=\"S\",BR89/BN89,\"\"),(BR89/BN89)*100),\"\")","v":""},null,null,{"$f":"IF(BR89>0,CHOOSE(MATCH(RegimeExecucao,{\"Unitário\",\"Global\"},0),IF($A89=\"S\",ROUND(P89,arredunit),\"\"),ROUND(R89,arredtot)),\"\")","v":""},null,null,null,0]
["S",0,1,9,1,0,1,0,0,3,"Serviço","1.9.1.1.","REGULARIZACAO E COMPACTACAO DE SUBLEITO ATE 20 CM DE ESPESSURA","M2",915.2,1.7,1555.84,1555.84,0,0,0,0,0,0,null,null,null,null,null,null,null,null,null,null,null,null,null,null,null,null,null,null,null,null,null,null,null,null,null,null,0,0,0,0,0,0,null,"1.9.1.1.",null,"REGULARIZACAO E COMPACTACAO DE SUBLEITO ATE 20 CM DE ESPESSURA","M2",null,{"$f":"IF(BR90>0,CHOOSE(MATCH(RegimeExecucao,{\"Unitário\",\"Global\"},0),IF($A90=\"S\",BR90/BN90,\"\"),(BR90/BN90)*100),\"\")","v":""},null,null,{"$f":"IF(BR90>0,CHOOSE(MATCH(RegimeExecucao,{\"Unitário\",\"Global\"},0),IF($A90=\"S\",ROUND(P90,arredunit),\"\"),ROUND(R90,arredtot)),\"\")","v":""},null,null,null,0]
["S",0,1,9,1,0,2,0,0,3,"Serviço","1.9.1.2.","ASSENTAMENTO DE GUIA (MEIO-FIO) EM TRECHO RETO, CONFECCIONADA EM CONCRETO PRÉ-FABRICADO, DIMENSÕES 100X15X13X30 CM (COMPRIMENTO X BASE INFERIOR X BASE SUPERIOR X ALTURA), PARA VIAS URBANAS (USO VIÁRIO). AF_06/2016","M",464.44,40.28,18707.64,18707.64,0,0,0,0,0,0,null,null,null,null,null,null,null,null,null,null,null,null,null,null,null,null,null,null,null,null,null,null,null,null,null,null,0,0,0,0,0,0,null,"1.9.1.2.",null,"ASSENTAMENTO DE GUIA (MEIO-FIO) EM TRECHO RETO, CONFECCIONADA EM CONCRETO PRÉ-FABRICADO, DIMENSÕES 100X15X13X30 CM (COMPRIMENTO X BASE INFERIOR X BASE SUPERIOR X ALTURA), PARA VIAS URBANAS (USO VIÁRIO). AF_06/2016","M",null,{"$f":"IF(BR91>0,CHOOSE(MATCH(RegimeExecucao,{\"Unitário\",\"Global\"},0),IF($A91=\"S\",BR91/BN91,\"\"),(BR91/BN91)*100),\"\")","v":""},null,null,{"$f":"IF(BR91>0,CHOOSE(MATCH(RegimeExecucao,{\"Unitário\",\"Global\"},0),IF($A91=\"S\",ROUND(P91,arredunit),\"\"),ROUND(R91,arredtot)),\"\")","v":""},null,null,null,0]
["S",0,1,9,1,0,3,0,0,3,"Serviço","1.9.1.3.","EXECUÇÃO DE SARJETA DE CONCRETO USINADO, MOLDADA  IN LOCO  EM TRECHO RETO, 30 CM BASE X 15 CM ALTURA. AF_06/2016","M",457.6,41.21,18857.7,18857.7,0,0,0,0,0,0,null,null,null,null,null,null,null,null,null,null,null,null,null,null,null,null,null,null,null,null,null,null,null,null,null,null,0,0,0,0,0,0,null,"1.9.1.3.",null,"EXECUÇÃO DE SARJETA DE CONCRETO USINADO, MOLDADA  IN LOCO  EM TRECHO RETO, 30 CM BASE X 15 CM ALTURA. AF_06/2016","M",null,{"$f":"IF(BR92>0,CHOOSE(MATCH(RegimeExecucao,{\"Unitário\",\"Global\"},0),IF($A92=\"S\",BR92/BN92,\"\"),(BR92/BN92)*100),\"\")","v":""},null,null,{"$f":"IF(BR92>0,CHOOSE(MATCH(RegimeExecucao,{\"Unitário\",\"Global\"},0),IF($A92=\"S\",ROUND(P92,arredunit),\"\"),ROUND(R92,arredtot)),\"\")","v":""},null,null,null,0]
["S",0,1,9,1,0,4,0,0,3,"Serviço","1.9.1.4.","PAVIMENTO EM PARALELEPIPEDO SOBRE COLCHAO DE AREIA REJUNTADO COM ARGAMASSA DE CIMENTO E AREIA NO TRAÇO 1:3 (PEDRAS PEQUENAS 30 A 35 PECAS POR M2)","M2",777.92,61.22,47624.26,47624.26,0,0,0,0,0,0,null,null,null,null,null,null,null,null,null,null,null,null,null,null,null,null,null,null,null,null,null,null,null,null,null,null,0,0,0,0,0,0,null,"1.9.1.4.",null,"PAVIMENTO EM PARALELEPIPEDO SOBRE COLCHAO DE AREIA REJUNTADO COM ARGAMASSA DE CIMENTO E AREIA NO TRAÇO 1:3 (PEDRAS PEQUENAS 30 A 35 PECAS POR M2)","M2",null,{"$f":"IF(BR93>0,CHOOSE(MATCH(RegimeExecucao,{\"Unitário\",\"Global\"},0),IF($A93=\"S\",BR93/BN93,\"\"),(BR93/BN93)*100),\"\")","v":""},null,null,{"$f":"IF(BR93>0,CHOOSE(MATCH(RegimeExecucao,{\"Unitário\",\"Global\"},0),IF($A93=\"S\",ROUND(P93,arredunit),\"\"),ROUND(R93,arredtot)),\"\")","v":""},null,null,null,0]
[3,4,1,9,2,0,0,4,{"$error":"#N/A"},2,"Nível 3","1.9.2.","CALÇADA","",0,0,32433.3,32433.3,0,0,0,0,0,0,null,null,null,null,null,null,null,null,null,null,null,null,null,null,null,null,null,null,null,null,null,null,null,null,null,null,0,0,0,0,0,0,null,"1.9.2.",null,"CALÇADA","",null,{"$f":"IF(BR94>0,CHOOSE(MATCH(RegimeExecucao,{\"Unitário\",\"Global\"},0),IF($A94=\"S\",BR94/BN94,\"\"),(BR94/BN94)*100),\"\")","v":""},null,null,{"$f":"IF(BR94>0,CHOOSE(MATCH(RegimeExecucao,{\"Unitário\",\"Global\"},0),IF($A94=\"S\",ROUND(P94,arredunit),\"\"),ROUND(R94,arredtot)),\"\")","v":""},null,null,null,0]
["S",0,1,9,2,0,1,0,0,3,"Serviço","1.9.2.1.","PISO PODOTATIL DE CONCRETO - DIRECIONAL E ALERTA, *40 X 40 X 2,5* CM","M2",15.6,90.58,1413.05,1413.05,0,0,0,0,0,0,null,null,null,null,null,null,null,null,null,null,null,null,null,null,null,null,null,null,null,null,null,null,null,null,null,null,0,0,0,0,0,0,null,"1.9.2.1.",null,"PISO PODOTATIL DE CONCRETO - DIRECIONAL E ALERTA, *40 X 40 X 2,5* CM","M2",null,{"$f":"IF(BR95>0,CHOOSE(MATCH(RegimeExecucao,{\"Unitário\",\"Global\"},0),IF($A95=\"S\",BR95/BN95,\"\"),(BR95/BN95)*100),\"\")","v":""},null,null,{"$f":"IF(BR95>0,CHOOSE(MATCH(RegimeExecucao,{\"Unitário\",\"Global\"},0),IF($A95=\"S\",ROUND(P95,arredunit),\"\"),ROUND(R95,arredtot)),\"\")","v":""},null,null,null,0]
["S",0,1,9,2,0,2,0,0,3,"Serviço","1.9.2.2.","ALVENARIA DE EMBASAMENTO EM TIJOLOS CERAMICOS MACICOS 5X10X20CM, ASSENTADO  COM ARGAMASSA TRACO 1:2:8 (CIMENTO, CAL E AREIA)","M3",8.99,696.86,6264.77,6264.77,0,0,0,0,0,0,null,null,null,null,null,null,null,null,null,null,null,null,null,null,null,null,null,null,null,null,null,null,null,null,null,null,0,0,0,0,0,0,null,"1.9.2.2.",null,"ALVENARIA DE EMBASAMENTO EM TIJOLOS CERAMICOS MACICOS 5X10X20CM, ASSENTADO  COM ARGAMASSA TRACO 1:2:8 (CIMENTO, CAL E AREIA)","M3",null,{"$f":"IF(BR96>0,CHOOSE(MATCH(RegimeExecucao,{\"Unitário\",\"Global\"},0),IF($A96=\"S\",BR96/BN96,\"\"),(BR96/BN96)*100),\"\")","v":""},null,null,{"$f":"IF(BR96>0,CHOOSE(MATCH(RegimeExecucao,{\"Unitário\",\"Global\"},0),IF($A96=\"S\",ROUND(P96,arredunit),\"\"),ROUND(R96,arredtot)),\"\")","v":""},null,null,null,0]
["S",0,1,9,2,0,3,0,0,3,"Serviço","1.9.2.3.","EXECUÇÃO DE PASSEIO (CALÇADA) OU PISO DE CONCRETO COM CONCRETO MOLDADO IN LOCO, FEITO EM OBRA, ACABAMENTO CONVENCIONAL, NÃO ARMADO. AF_07/2016","M3",38.22,647.71,24755.48,24755.48,0,0,0,0,0,0,null,null,null,null,null,null,null,null,null,null,null,null,null,null,null,null,null,null,null,null,null,null,null,null,null,null,0,0,0,0,0,0,null,"1.9.2.3.",null,"EXECUÇÃO DE PASSEIO (CALÇADA) OU PISO DE CONCRETO COM CONCRETO MOLDADO IN LOCO, FEITO EM OBRA, ACABAMENTO CONVENCIONAL, NÃO ARMADO. AF_07/2016","M3",null,{"$f":"IF(BR97>0,CHOOSE(MATCH(RegimeExecucao,{\"Unitário\",\"Global\"},0),IF($A97=\"S\",BR97/BN97,\"\"),(BR97/BN97)*100),\"\")","v":""},null,null,{"$f":"IF(BR97>0,CHOOSE(MATCH(RegimeExecucao,{\"Unitário\",\"Global\"},0),IF($A97=\"S\",ROUND(P97,arredunit),\"\"),ROUND(R97,arredtot)),\"\")","v":""},null,null,null,0]
[2,10,1,10,0,0,0,26,10,1,"Nível 2","1.10.","RUA PROJETADA 06","",0,0,104311.12,104311.12,0,0,0,0,0,0,null,null,null,null,null,null,null,null,null,null,null,null,null,null,null,null,null,null,null,null,null,null,null,null,null,null,0,0,0,0,0,0,null,"1.10.",null,"RUA PROJETADA 06","",null,{"$f":"IF(BR98>0,CHOOSE(MATCH(RegimeExecucao,{\"Unitário\",\"Global\"},0),IF($A98=\"S\",BR98/BN98,\"\"),(BR98/BN98)*100),\"\")","v":""},null,null,{"$f":"IF(BR98>0,CHOOSE(MATCH(RegimeExecucao,{\"Unitário\",\"Global\"},0),IF($A98=\"S\",ROUND(P98,arredunit),\"\"),ROUND(R98,arredtot)),\"\")","v":""},null,null,null,0]
[3,5,1,10,1,0,0,9,5,2,"Nível 3","1.10.1.","PAVIMENTAÇÃO","",0,0,80835.259999999995,80835.259999999995,0,0,0,0,0,0,null,null,null,null,null,null,null,null,null,null,null,null,null,null,null,null,null,null,null,null,null,null,null,null,null,null,0,0,0,0,0,0,null,"1.10.1.",null,"PAVIMENTAÇÃO","",null,{"$f":"IF(BR99>0,CHOOSE(MATCH(RegimeExecucao,{\"Unitário\",\"Global\"},0),IF($A99=\"S\",BR99/BN99,\"\"),(BR99/BN99)*100),\"\")","v":""},null,null,{"$f":"IF(BR99>0,CHOOSE(MATCH(RegimeExecucao,{\"Unitário\",\"Global\"},0),IF($A99=\"S\",ROUND(P99,arredunit),\"\"),ROUND(R99,arredtot)),\"\")","v":""},null,null,null,0]
["S",0,1,10,1,0,1,0,0,3,"Serviço","1.10.1.1.","REGULARIZACAO E COMPACTACAO DE SUBLEITO ATE 20 CM DE ESPESSURA","M2",999.67,1.7,1699.44,1699.44,0,0,0,0,0,0,null,null,null,null,null,null,null,null,null,null,null,null,null,null,null,null,null,null,null,null,null,null,null,null,null,null,0,0,0,0,0,0,null,"1.10.1.1.",null,"REGULARIZACAO E COMPACTACAO DE SUBLEITO ATE 20 CM DE ESPESSURA","M2",null,{"$f":"IF(BR100>0,CHOOSE(MATCH(RegimeExecucao,{\"Unitário\",\"Global\"},0),IF($A100=\"S\",BR100/BN100,\"\"),(BR100/BN100)*100),\"\")","v":""},null,null,{"$f":"IF(BR100>0,CHOOSE(MATCH(RegimeExecucao,{\"Unitário\",\"Global\"},0),IF($A100=\"S\",ROUND(P100,arredunit),\"\"),ROUND(R100,arredtot)),\"\")","v":""},null,null,null,0]
[{"$f":"CHOOSE(1+LOG(1+2*(K101=\"Meta\")+4*(K101=\"Nível 2\")+8*(K101=\"Nível 3\")+16*(K101=\"Nível 4\")+32*(K101=\"Serviço\"),2),0,1,2,3,4,\"S\")","v":"S"},{"$f":"IF(OR(A101=\"S\",A101=0),0,IF(ISERROR(I101),H101,SMALL(H101:I101,1)))","v":0},1,10,1,0,2,0,0,3,"Serviço","1.10.1.2.","ASSENTAMENTO DE GUIA (MEIO-FIO) EM TRECHO RETO, CONFECCIONADA EM CONCRETO PRÉ-FABRICADO, DIMENSÕES 100X15X13X30 CM (COMPRIMENTO X BASE INFERIOR X BASE SUPERIOR X ALTURA), PARA VIAS URBANAS (USO VIÁRIO). AF_06/2016","M",292.38,40.28,11777.07,11777.07,{"$f":"IF(AND($A101=\"S\",COUNTIF($Z$13:$AW$13,mediçao-1)>0),SUM(OFFSET($Z101,0,0,1,MATCH(mediçao-1,$Z$13:$AW$13,0))),IF(AND(RegimeExecucao=\"Global\",$R101>0,COUNTIF($Z$13:$AW$13,mediçao-1)>0),V101/$R101*100,0))","v":0},{"$f":"U101-S101","v":0},{"$f":"IF(AND($A101=\"S\",COUNTIF($Z$13:$AW$13,mediçao)>0),SUM(OFFSET($Z101,0,0,1,MATCH(mediçao,$Z$13:$AW$13,0))),IF(AND(RegimeExecucao=\"Global\",$R101>0,COUNTIF($Z$13:$AW$13,mediçao)>0),X101/$R101*100,0))","v":0},0,{"$f":"X101-V101","v":0},0,null,null,null,null,null,null,null,null,null,null,null,null,null,null,null,null,null,null,null,null,null,null,null,null,null,null,0,{"$f":"BA101-AY101","v":0},0,0,{"$f":"BD101-BB101","v":0},0,null,{"$f":"IF(BK101>0,L101,\"\")","v":"1.10.1.2."},null,{"$f":"IF(BK101>0,M101,\"\")","v":"ASSENTAMENTO DE GUIA (MEIO-FIO) EM TRECHO RETO, CONFECCIONADA EM CONCRETO PRÉ-FABRICADO, DIMENSÕES 100X15X13X30 CM (COMPRIMENTO X BASE INFERIOR X BASE SUPERIOR X ALTURA), PARA VIAS URBANAS (USO VIÁRIO). AF_06/2016"},{"$f":"IF(BK101>0,N101,\"\")","v":"M"},null,{"$f":"IF(BR101>0,CHOOSE(MATCH(RegimeExecucao,{\"Unitário\",\"Global\"},0),IF($A101=\"S\",BR101/BN101,\"\"),(BR101/BN101)*100),\"\")","v":""},null,null,{"$f":"IF(BR101>0,CHOOSE(MATCH(RegimeExecucao,{\"Unitário\",\"Global\"},0),IF($A101=\"S\",ROUND(P101,arredunit),\"\"),ROUND(R101,arredtot)),\"\")","v":""},null,null,null,0]
["S",0,1,10,1,0,3,0,0,3,"Serviço","1.10.1.3.","EXECUÇÃO DE SARJETA DE CONCRETO USINADO, MOLDADA  IN LOCO  EM TRECHO RETO, 30 CM BASE X 15 CM ALTURA. AF_06/2016","M",269.62,41.21,11111.04,11111.04,0,0,0,0,0,0,null,null,null,null,null,null,null,null,null,null,null,null,null,null,null,null,null,null,null,null,null,null,null,null,null,null,0,0,0,0,0,0,null,"1.10.1.3.",null,"EXECUÇÃO DE SARJETA DE CONCRETO USINADO, MOLDADA  IN LOCO  EM TRECHO RETO, 30 CM BASE X 15 CM ALTURA. AF_06/2016","M",null,{"$f":"IF(BR102>0,CHOOSE(MATCH(RegimeExecucao,{\"Unitário\",\"Global\"},0),IF($A102=\"S\",BR102/BN102,\"\"),(BR102/BN102)*100),\"\")","v":""},null,null,{"$f":"IF(BR102>0,CHOOSE(MATCH(RegimeExecucao,{\"Unitário\",\"Global\"},0),IF($A102=\"S\",ROUND(P102,arredunit),\"\"),ROUND(R102,arredtot)),\"\")","v":""},null,null,null,0]
["S",0,1,10,1,0,4,0,0,3,"Serviço","1.10.1.4.","PAVIMENTO EM PARALELEPIPEDO SOBRE COLCHAO DE AREIA REJUNTADO COM ARGAMASSA DE CIMENTO E AREIA NO TRAÇO 1:3 (PEDRAS PEQUENAS 30 A 35 PECAS POR M2)","M2",918.78,61.22,56247.71,56247.71,0,0,0,0,0,0,null,null,null,null,null,null,null,null,null,null,null,null,null,null,null,null,null,null,null,null,null,null,null,null,null,null,0,0,0,0,0,0,null,"1.10.1.4.",null,"PAVIMENTO EM PARALELEPIPEDO SOBRE COLCHAO DE AREIA REJUNTADO COM ARGAMASSA DE CIMENTO E AREIA NO TRAÇO 1:3 (PEDRAS PEQUENAS 30 A 35 PECAS POR M2)","M2",null,{"$f":"IF(BR103>0,CHOOSE(MATCH(RegimeExecucao,{\"Unitário\",\"Global\"},0),IF($A103=\"S\",BR103/BN103,\"\"),(BR103/BN103)*100),\"\")","v":""},null,null,{"$f":"IF(BR103>0,CHOOSE(MATCH(RegimeExecucao,{\"Unitário\",\"Global\"},0),IF($A103=\"S\",ROUND(P103,arredunit),\"\"),ROUND(R103,arredtot)),\"\")","v":""},null,null,null,0]
[3,4,1,10,2,0,0,4,{"$error":"#N/A"},2,"Nível 3","1.10.2.","CALÇADA","",0,0,23475.86,23475.86,0,0,0,0,0,0,null,null,null,null,null,null,null,null,null,null,null,null,null,null,null,null,null,null,null,null,null,null,null,null,null,null,0,0,0,0,0,0,null,"1.10.2.",null,"CALÇADA","",null,{"$f":"IF(BR104>0,CHOOSE(MATCH(RegimeExecucao,{\"Unitário\",\"Global\"},0),IF($A104=\"S\",BR104/BN104,\"\"),(BR104/BN104)*100),\"\")","v":""},null,null,{"$f":"IF(BR104>0,CHOOSE(MATCH(RegimeExecucao,{\"Unitário\",\"Global\"},0),IF($A104=\"S\",ROUND(P104,arredunit),\"\"),ROUND(R104,arredtot)),\"\")","v":""},null,null,null,0]
["S",0,1,10,2,0,1,0,0,3,"Serviço","1.10.2.1.","PISO PODOTATIL DE CONCRETO - DIRECIONAL E ALERTA, *40 X 40 X 2,5* CM","M2",21.6,90.58,1956.53,1956.53,0,0,0,0,0,0,null,null,null,null,null,null,null,null,null,null,null,null,null,null,null,null,null,null,null,null,null,null,null,null,null,null,0,0,0,0,0,0,null,"1.10.2.1.",null,"PISO PODOTATIL DE CONCRETO - DIRECIONAL E ALERTA, *40 X 40 X 2,5* CM","M2",null,{"$f":"IF(BR105>0,CHOOSE(MATCH(RegimeExecucao,{\"Unitário\",\"Global\"},0),IF($A105=\"S\",BR105/BN105,\"\"),(BR105/BN105)*100),\"\")","v":""},null,null,{"$f":"IF(BR105>0,CHOOSE(MATCH(RegimeExecucao,{\"Unitário\",\"Global\"},0),IF($A105=\"S\",ROUND(P105,arredunit),\"\"),ROUND(R105,arredtot)),\"\")","v":""},null,null,null,0]
["S",0,1,10,2,0,2,0,0,3,"Serviço","1.10.2.2.","ALVENARIA DE EMBASAMENTO EM TIJOLOS CERAMICOS MACICOS 5X10X20CM, ASSENTADO  COM ARGAMASSA TRACO 1:2:8 (CIMENTO, CAL E AREIA)","M3",5.32,696.86,3707.3,3707.3,0,0,0,0,0,0,null,null,null,null,null,null,null,null,null,null,null,null,null,null,null,null,null,null,null,null,null,null,null,null,null,null,0,0,0,0,0,0,null,"1.10.2.2.",null,"ALVENARIA DE EMBASAMENTO EM TIJOLOS CERAMICOS MACICOS 5X10X20CM, ASSENTADO  COM ARGAMASSA TRACO 1:2:8 (CIMENTO, CAL E AREIA)","M3",null,{"$f":"IF(BR106>0,CHOOSE(MATCH(RegimeExecucao,{\"Unitário\",\"Global\"},0),IF($A106=\"S\",BR106/BN106,\"\"),(BR106/BN106)*100),\"\")","v":""},null,null,{"$f":"IF(BR106>0,CHOOSE(MATCH(RegimeExecucao,{\"Unitário\",\"Global\"},0),IF($A106=\"S\",ROUND(P106,arredunit),\"\"),ROUND(R106,arredtot)),\"\")","v":""},null,null,null,0]
["S",0,1,10,2,0,3,0,0,3,"Serviço","1.10.2.3.","EXECUÇÃO DE PASSEIO (CALÇADA) OU PISO DE CONCRETO COM CONCRETO MOLDADO IN LOCO, FEITO EM OBRA, ACABAMENTO CONVENCIONAL, NÃO ARMADO. AF_07/2016","M3",27.5,647.71,17812.03,17812.03,0,0,0,0,0,0,null,null,null,null,null,null,null,null,null,null,null,null,null,null,null,null,null,null,null,null,null,null,null,null,null,null,0,0,0,0,0,0,null,"1.10.2.3.",null,"EXECUÇÃO DE PASSEIO (CALÇADA) OU PISO DE CONCRETO COM CONCRETO MOLDADO IN LOCO, FEITO EM OBRA, ACABAMENTO CONVENCIONAL, NÃO ARMADO. AF_07/2016","M3",null,{"$f":"IF(BR107>0,CHOOSE(MATCH(RegimeExecucao,{\"Unitário\",\"Global\"},0),IF($A107=\"S\",BR107/BN107,\"\"),(BR107/BN107)*100),\"\")","v":""},null,null,{"$f":"IF(BR107>0,CHOOSE(MATCH(RegimeExecucao,{\"Unitário\",\"Global\"},0),IF($A107=\"S\",ROUND(P107,arredunit),\"\"),ROUND(R107,arredtot)),\"\")","v":""},null,null,null,0]
[2,10,1,11,0,0,0,16,10,1,"Nível 2","1.11.","RUA PROJETADA 04","",0,0,121410.03,121410.03,0,0,0,0,0,0,null,null,null,null,null,null,null,null,null,null,null,null,null,null,null,null,null,null,null,null,null,null,null,null,null,null,0,0,0,0,0,0,null,"1.11.",null,"RUA PROJETADA 04","",null,{"$f":"IF(BR108>0,CHOOSE(MATCH(RegimeExecucao,{\"Unitário\",\"Global\"},0),IF($A108=\"S\",BR108/BN108,\"\"),(BR108/BN108)*100),\"\")","v":""},null,null,{"$f":"IF(BR108>0,CHOOSE(MATCH(RegimeExecucao,{\"Unitário\",\"Global\"},0),IF($A108=\"S\",ROUND(P108,arredunit),\"\"),ROUND(R108,arredtot)),\"\")","v":""},null,null,null,0]
[3,5,1,11,1,0,0,9,5,2,"Nível 3","1.11.1.","PAVIMENTAÇÃO","",0,0,88328.71,88328.71,0,0,0,0,0,0,null,null,null,null,null,null,null,null,null,null,null,null,null,null,null,null,null,null,null,null,null,null,null,null,null,null,0,0,0,0,0,0,null,"1.11.1.",null,"PAVIMENTAÇÃO","",null,{"$f":"IF(BR109>0,CHOOSE(MATCH(RegimeExecucao,{\"Unitário\",\"Global\"},0),IF($A109=\"S\",BR109/BN109,\"\"),(BR109/BN109)*100),\"\")","v":""},null,null,{"$f":"IF(BR109>0,CHOOSE(MATCH(RegimeExecucao,{\"Unitário\",\"Global\"},0),IF($A109=\"S\",ROUND(P109,arredunit),\"\"),ROUND(R109,arredtot)),\"\")","v":""},null,null,null,0]
["S",0,1,11,1,0,1,0,0,3,"Serviço","1.11.1.1.","REGULARIZACAO E COMPACTACAO DE SUBLEITO ATE 20 CM DE ESPESSURA","M2",932,1.7,1584.4,1584.4,0,0,0,0,0,0,null,null,null,null,null,null,null,null,null,null,null,null,null,null,null,null,null,null,null,null,null,null,null,null,null,null,0,0,0,0,0,0,null,"1.11.1.1.",null,"REGULARIZACAO E COMPACTACAO DE SUBLEITO ATE 20 CM DE ESPESSURA","M2",null,{"$f":"IF(BR110>0,CHOOSE(MATCH(RegimeExecucao,{\"Unitário\",\"Global\"},0),IF($A110=\"S\",BR110/BN110,\"\"),(BR110/BN110)*100),\"\")","v":""},null,null,{"$f":"IF(BR110>0,CHOOSE(MATCH(RegimeExecucao,{\"Unitário\",\"Global\"},0),IF($A110=\"S\",ROUND(P110,arredunit),\"\"),ROUND(R110,arredtot)),\"\")","v":""},null,null,null,0]
["S",0,1,11,1,0,2,0,0,3,"Serviço","1.11.1.2.","ASSENTAMENTO DE GUIA (MEIO-FIO) EM TRECHO RETO, CONFECCIONADA EM CONCRETO PRÉ-FABRICADO, DIMENSÕES 100X15X13X30 CM (COMPRIMENTO X BASE INFERIOR X BASE SUPERIOR X ALTURA), PARA VIAS URBANAS (USO VIÁRIO). AF_06/2016","M",472.74,40.28,19041.97,19041.97,0,0,0,0,0,0,null,null,null,null,null,null,null,null,null,null,null,null,null,null,null,null,null,null,null,null,null,null,null,null,null,null,0,0,0,0,0,0,null,"1.11.1.2.",null,"ASSENTAMENTO DE GUIA (MEIO-FIO) EM TRECHO RETO, CONFECCIONADA EM CONCRETO PRÉ-FABRICADO, DIMENSÕES 100X15X13X30 CM (COMPRIMENTO X BASE INFERIOR X BASE SUPERIOR X ALTURA), PARA VIAS URBANAS (USO VIÁRIO). AF_06/2016","M",null,{"$f":"IF(BR111>0,CHOOSE(MATCH(RegimeExecucao,{\"Unitário\",\"Global\"},0),IF($A111=\"S\",BR111/BN111,\"\"),(BR111/BN111)*100),\"\")","v":""},null,null,{"$f":"IF(BR111>0,CHOOSE(MATCH(RegimeExecucao,{\"Unitário\",\"Global\"},0),IF($A111=\"S\",ROUND(P111,arredunit),\"\"),ROUND(R111,arredtot)),\"\")","v":""},null,null,null,0]
["S",0,1,11,1,0,3,0,0,3,"Serviço","1.11.1.3.","EXECUÇÃO DE SARJETA DE CONCRETO USINADO, MOLDADA  IN LOCO  EM TRECHO RETO, 30 CM BASE X 15 CM ALTURA. AF_06/2016","M",466,41.21,19203.86,19203.86,0,0,0,0,0,0,null,null,null,null,null,null,null,null,null,null,null,null,null,null,null,null,null,null,null,null,null,null,null,null,null,null,0,0,0,0,0,0,null,"1.11.1.3.",null,"EXECUÇÃO DE SARJETA DE CONCRETO USINADO, MOLDADA  IN LOCO  EM TRECHO RETO, 30 CM BASE X 15 CM ALTURA. AF_06/2016","M",null,{"$f":"IF(BR112>0,CHOOSE(MATCH(RegimeExecucao,{\"Unitário\",\"Global\"},0),IF($A112=\"S\",BR112/BN112,\"\"),(BR112/BN112)*100),\"\")","v":""},null,null,{"$f":"IF(BR112>0,CHOOSE(MATCH(RegimeExecucao,{\"Unitário\",\"Global\"},0),IF($A112=\"S\",ROUND(P112,arredunit),\"\"),ROUND(R112,arredtot)),\"\")","v":""},null,null,null,0]
["S",0,1,11,1,0,4,0,0,3,"Serviço","1.11.1.4.","PAVIMENTO EM PARALELEPIPEDO SOBRE COLCHAO DE AREIA REJUNTADO COM ARGAMASSA DE CIMENTO E AREIA NO TRAÇO 1:3 (PEDRAS PEQUENAS 30 A 35 PECAS POR M2)","M2",792.2,61.22,48498.48,48498.48,0,0,0,0,0,0,null,null,null,null,null,null,null,null,null,null,null,null,null,null,null,null,null,null,null,null,null,null,null,null,null,null,0,0,0,0,0,0,null,"1.11.1.4.",null,"PAVIMENTO EM PARALELEPIPEDO SOBRE COLCHAO DE AREIA REJUNTADO COM ARGAMASSA DE CIMENTO E AREIA NO TRAÇO 1:3 (PEDRAS PEQUENAS 30 A 35 PECAS POR M2)","M2",null,{"$f":"IF(BR113>0,CHOOSE(MATCH(RegimeExecucao,{\"Unitário\",\"Global\"},0),IF($A113=\"S\",BR113/BN113,\"\"),(BR113/BN113)*100),\"\")","v":""},null,null,{"$f":"IF(BR113>0,CHOOSE(MATCH(RegimeExecucao,{\"Unitário\",\"Global\"},0),IF($A113=\"S\",ROUND(P113,arredunit),\"\"),ROUND(R113,arredtot)),\"\")","v":""},null,null,null,0]
[3,4,1,11,2,0,0,4,{"$error":"#N/A"},2,"Nível 3","1.11.2.","CALÇADA","",0,0,33081.32,33081.32,0,0,0,0,0,0,null,null,null,null,null,null,null,null,null,null,null,null,null,null,null,null,null,null,null,null,null,null,null,null,null,null,0,0,0,0,0,0,null,"1.11.2.",null,"CALÇADA","",null,{"$f":"IF(BR114>0,CHOOSE(MATCH(RegimeExecucao,{\"Unitário\",\"Global\"},0),IF($A114=\"S\",BR114/BN114,\"\"),(BR114/BN114)*100),\"\")","v":""},null,null,{"$f":"IF(BR114>0,CHOOSE(MATCH(RegimeExecucao,{\"Unitário\",\"Global\"},0),IF($A114=\"S\",ROUND(P114,arredunit),\"\"),ROUND(R114,arredtot)),\"\")","v":""},null,null,null,0]
["S",0,1,11,2,0,1,0,0,3,"Serviço","1.11.2.1.","PISO PODOTATIL DE CONCRETO - DIRECIONAL E ALERTA, *40 X 40 X 2,5* CM","M2",15.6,90.58,1413.05,1413.05,0,0,0,0,0,0,null,null,null,null,null,null,null,null,null,null,null,null,null,null,null,null,null,null,null,null,null,null,null,null,null,null,0,0,0,0,0,0,null,"1.11.2.1.",null,"PISO PODOTATIL DE CONCRETO - DIRECIONAL E ALERTA, *40 X 40 X 2,5* CM","M2",null,{"$f":"IF(BR115>0,CHOOSE(MATCH(RegimeExecucao,{\"Unitário\",\"Global\"},0),IF($A115=\"S\",BR115/BN115,\"\"),(BR115/BN115)*100),\"\")","v":""},null,null,{"$f":"IF(BR115>0,CHOOSE(MATCH(RegimeExecucao,{\"Unitário\",\"Global\"},0),IF($A115=\"S\",ROUND(P115,arredunit),\"\"),ROUND(R115,arredtot)),\"\")","v":""},null,null,null,0]
["S",0,1,11,2,0,2,0,0,3,"Serviço","1.11.2.2.","ALVENARIA DE EMBASAMENTO EM TIJOLOS CERAMICOS MACICOS 5X10X20CM, ASSENTADO  COM ARGAMASSA TRACO 1:2:8 (CIMENTO, CAL E AREIA)","M3",9.26,696.86,6452.92,6452.92,0,0,0,0,0,0,null,null,null,null,null,null,null,null,null,null,null,null,null,null,null,null,null,null,null,null,null,null,null,null,null,null,0,0,0,0,0,0,null,"1.11.2.2.",null,"ALVENARIA DE EMBASAMENTO EM TIJOLOS CERAMICOS MACICOS 5X10X20CM, ASSENTADO  COM ARGAMASSA TRACO 1:2:8 (CIMENTO, CAL E AREIA)","M3",null,{"$f":"IF(BR116>0,CHOOSE(MATCH(RegimeExecucao,{\"Unitário\",\"Global\"},0),IF($A116=\"S\",BR116/BN116,\"\"),(BR116/BN116)*100),\"\")","v":""},null,null,{"$f":"IF(BR116>0,CHOOSE(MATCH(RegimeExecucao,{\"Unitário\",\"Global\"},0),IF($A116=\"S\",ROUND(P116,arredunit),\"\"),ROUND(R116,arredtot)),\"\")","v":""},null,null,null,0]
["S",0,1,11,2,0,3,0,0,3,"Serviço","1.11.2.3.","EXECUÇÃO DE PASSEIO (CALÇADA) OU PISO DE CONCRETO COM CONCRETO MOLDADO IN LOCO, FEITO EM OBRA, ACABAMENTO CONVENCIONAL, NÃO ARMADO. AF_07/2016","M3",38.93,647.71,25215.35,25215.35,0,0,0,0,0,0,null,null,null,null,null,null,null,null,null,null,null,null,null,null,null,null,null,null,null,null,null,null,null,null,null,null,0,0,0,0,0,0,null,"1.11.2.3.",null,"EXECUÇÃO DE PASSEIO (CALÇADA) OU PISO DE CONCRETO COM CONCRETO MOLDADO IN LOCO, FEITO EM OBRA, ACABAMENTO CONVENCIONAL, NÃO ARMADO. AF_07/2016","M3",null,{"$f":"IF(BR117>0,CHOOSE(MATCH(RegimeExecucao,{\"Unitário\",\"Global\"},0),IF($A117=\"S\",BR117/BN117,\"\"),(BR117/BN117)*100),\"\")","v":""},null,null,{"$f":"IF(BR117>0,CHOOSE(MATCH(RegimeExecucao,{\"Unitário\",\"Global\"},0),IF($A117=\"S\",ROUND(P117,arredunit),\"\"),ROUND(R117,arredtot)),\"\")","v":""},null,null,null,0]
[2,6,1,12,0,0,0,6,{"$error":"#N/A"},1,"Nível 2","1.12.","SINALIZAÇÃO","",0,0,34537.96,34537.96,0,0,0,0,0,0,null,null,null,null,null,null,null,null,null,null,null,null,null,null,null,null,null,null,null,null,null,null,null,null,null,null,0,0,0,0,0,0,null,"1.12.",null,"SINALIZAÇÃO","",null,{"$f":"IF(BR118>0,CHOOSE(MATCH(RegimeExecucao,{\"Unitário\",\"Global\"},0),IF($A118=\"S\",BR118/BN118,\"\"),(BR118/BN118)*100),\"\")","v":""},null,null,{"$f":"IF(BR118>0,CHOOSE(MATCH(RegimeExecucao,{\"Unitário\",\"Global\"},0),IF($A118=\"S\",ROUND(P118,arredunit),\"\"),ROUND(R118,arredtot)),\"\")","v":""},null,null,null,0]
["S",0,1,12,0,0,1,0,0,3,"Serviço","1.12.0.1.","PLACA ESMALTADA PARA IDENTIFICAÇÃO NR DE RUA, DIMENSÕES 45X25CM","UN",20,99.38,1987.6,1987.6,0,0,0,0,0,0,null,null,null,null,null,null,null,null,null,null,null,null,null,null,null,null,null,null,null,null,null,null,null,null,null,null,0,0,0,0,0,0,null,"1.12.0.1.",null,"PLACA ESMALTADA PARA IDENTIFICAÇÃO NR DE RUA, DIMENSÕES 45X25CM","UN",null,{"$f":"IF(BR119>0,CHOOSE(MATCH(RegimeExecucao,{\"Unitário\",\"Global\"},0),IF($A119=\"S\",BR119/BN119,\"\"),(BR119/BN119)*100),\"\")","v":""},null,null,{"$f":"IF(BR119>0,CHOOSE(MATCH(RegimeExecucao,{\"Unitário\",\"Global\"},0),IF($A119=\"S\",ROUND(P119,arredunit),\"\"),ROUND(R119,arredtot)),\"\")","v":""},null,null,null,0]
["S",0,1,12,0,0,2,0,0,3,"Serviço","1.12.0.2.","Fornecimento e implantação de placa de regulamentação em aço D = 0,60 m - película retrorrefletiva tipo I e SI","UND",48,211.19,10137.120000000001,10137.120000000001,0,0,0,0,0,0,null,null,null,null,null,null,null,null,null,null,null,null,null,null,null,null,null,null,null,null,null,null,null,null,null,null,0,0,0,0,0,0,null,"1.12.0.2.",null,"Fornecimento e implantação de placa de regulamentação em aço D = 0,60 m - película retrorrefletiva tipo I e SI","UND",null,{"$f":"IF(BR120>0,CHOOSE(MATCH(RegimeExecucao,{\"Unitário\",\"Global\"},0),IF($A120=\"S\",BR120/BN120,\"\"),(BR120/BN120)*100),\"\")","v":""},null,null,{"$f":"IF(BR120>0,CHOOSE(MATCH(RegimeExecucao,{\"Unitário\",\"Global\"},0),IF($A120=\"S\",ROUND(P120,arredunit),\"\"),ROUND(R120,arredtot)),\"\")","v":""},null,null,null,0]
["S",0,1,12,0,0,3,0,0,3,"Serviço","1.12.0.3.","Fornecimento e implantação de placa de regulamentação em aço, R1 lado 0,248 m - película retrorrefletiva tipo I e SI","UND",22,260.88,5739.36,5739.36,0,0,0,0,0,0,null,null,null,null,null,null,null,null,null,null,null,null,null,null,null,null,null,null,null,null,null,null,null,null,null,null,0,0,0,0,0,0,null,"1.12.0.3.",null,"Fornecimento e implantação de placa de regulamentação em aço, R1 lado 0,248 m - película retrorrefletiva tipo I e SI","UND",null,{"$f":"IF(BR121>0,CHOOSE(MATCH(RegimeExecucao,{\"Unitário\",\"Global\"},0),IF($A121=\"S\",BR121/BN121,\"\"),(BR121/BN121)*100),\"\")","v":""},null,null,{"$f":"IF(BR121>0,CHOOSE(MATCH(RegimeExecucao,{\"Unitário\",\"Global\"},0),IF($A121=\"S\",ROUND(P121,arredunit),\"\"),ROUND(R121,arredtot)),\"\")","v":""},null,null,null,0]
["S",0,1,12,0,0,4,0,0,3,"Serviço","1.12.0.4.","Fornecimento e implantação de suporte metálico galvanizado para placa de regulamentação - D = 0,60 m","UND",48,233.55,11210.4,11210.4,0,0,0,0,0,0,null,null,null,null,null,null,null,null,null,null,null,null,null,null,null,null,null,null,null,null,null,null,null,null,null,null,0,0,0,0,0,0,null,"1.12.0.4.",null,"Fornecimento e implantação de suporte metálico galvanizado para placa de regulamentação - D = 0,60 m","UND",null,{"$f":"IF(BR122>0,CHOOSE(MATCH(RegimeExecucao,{\"Unitário\",\"Global\"},0),IF($A122=\"S\",BR122/BN122,\"\"),(BR122/BN122)*100),\"\")","v":""},null,null,{"$f":"IF(BR122>0,CHOOSE(MATCH(RegimeExecucao,{\"Unitário\",\"Global\"},0),IF($A122=\"S\",ROUND(P122,arredunit),\"\"),ROUND(R122,arredtot)),\"\")","v":""},null,null,null,0]
["S",0,1,12,0,0,5,0,0,3,"Serviço","1.12.0.5.","Fornecimento e implantação de suporte metálico galvanizado para placa de regulamentação - R1 - lado de 0,248 m","UND",22,248.34,5463.48,5463.48,0,0,0,0,0,0,null,null,null,null,null,null,null,null,null,null,null,null,null,null,null,null,null,null,null,null,null,null,null,null,null,null,0,0,0,0,0,0,null,"1.12.0.5.",null,"Fornecimento e implantação de suporte metálico galvanizado para placa de regulamentação - R1 - lado de 0,248 m","UND",null,{"$f":"IF(BR123>0,CHOOSE(MATCH(RegimeExecucao,{\"Unitário\",\"Global\"},0),IF($A123=\"S\",BR123/BN123,\"\"),(BR123/BN123)*100),\"\")","v":""},null,null,{"$f":"IF(BR123>0,CHOOSE(MATCH(RegimeExecucao,{\"Unitário\",\"Global\"},0),IF($A123=\"S\",ROUND(P123,arredunit),\"\"),ROUND(R123,arredtot)),\"\")","v":""},null,null,null,0]
[-1,0,0,0,0,0,0]
[null,null,null,null,null,null,null,null,null,null,null,null,null,null,null,null,null,null,null,null,null,null,null,null,null,null,null,null,null,null,null,null,null,null,null,null,null,null,null,null,null,null,null,null,null,null,null,null,null,null,null,null,null,null,null,null,null,null,null,null,null,null,null,null,null,null,null,null,null,null,null,null,null,null,null,null,null,null,null,null,false]
[null,null,null,null,null,null,null,null,null,null,null,"Obs:"]
[]
[null,null,null,null,null,null,null,null,null,null,null,"Obs 2:",{"$f":"IF(OR(AND($R$3=FALSE,$S$3=FALSE,RegimeExecucao=\"Global\"),AND($O$3=FALSE,$P$3=FALSE,$R$3=FALSE,$S$3=FALSE)),\"Não foi considerado arredondamento nos valores da planilha.\",CONCATENATE(\"Foi considerado arredondamento de duas casas decimais para \",IF(AND(RegimeExecucao=\"Unitário\",$O$3=TRUE),\"Quantidade; \",\"\"),IF(AND(RegimeExecucao=\"Unitário\",$P$3=TRUE),\"Preço unitário; \",\"\"),IF($R$3=TRUE,\"Preço total; \",\"\"),,IF($S$3=TRUE,\"Medição.\",\"\")))","v":"Foi considerado arredondamento de duas casas decimais para Preço total; Medição."}]
[null,null,null,null,null,null,null,null,null,null,null,"Os serviços medidos informados neste BM encontram-se concluídos, estão em conformidade com os projetos e especificações aceitos pela CAIXA e foram executados de acordo com as normas técnicas.",null,null,null,null,null,null,null,null,null,null,null,null,null,null,null,null,null,null,null,null,null,null,null,null,null,null,null,null,null,null,null,null,null,null,null,null,null,null,null,null,null,null,null,null,null,null,null,null,null,null,null,null,null,null,null,null,null,null,null,null,null,null,null,null,null,null,null,null,"Os serviços medidos informados neste BM encontram-se concluídos, estão em conformidade com os projetos e especificações aceitos pela CAIXA e foram executados de acordo com as normas técnicas."]
[null,null,null,null,null,null,null,null,null,null,null,{"$f":"DADOS!$D$23&\", \"&TEXT(TODAY(),\"dd\")&\" de \"&TEXT(TODAY(),\"mmmm\")&\" de \"&TEXT(TODAY(),\"aaaa\")","v":"Vertentes/PE, 24 de fevereiro de 2022"},null,null,null,null,null,null,null,null,null,null,null,null,null,null,null,null,null,null,null,null,null,null,null,null,null,null,null,null,null,null,null,null,null,null,null,null,null,null,null,null,null,null,null,null,null,null,null,null,null,null,null,null,null,null,null,null,null,null,null,null,null,null,null,null,null,null,null,null,"1. A vistoria, no caso de obras, tem como principal objetivo observar o seu estágio atual de andamento e se o que é visualizável em campo é compatível com o avanço físico do empreendimento atestado no BM da fiscalização técnica do tomador.\n2. A vistoria técnica é amparada exclusivamente em constatação visual, sem qualquer apoio de instrumentos, testes e/ou ensaios e a precisão esperada das informações é compatível com essa metodologia.\n3. O ateste, a medição, a fiscalização e a aceitação dos serviços realizados e materiais/equipamentos utilizados na obra são de responsabilidade do profissional indicado pelo agente promotor/tomador como Fiscal da Obra, conforme ART específica."]
[null,null,null,null,null,null,null,null,null,null,null,"Local e Data",null,null,null,"Resp. Técnico Fiscalização:",null,{"$f":"IF(DADOS!A50=\"\",\"\",DADOS!A50)","v":""},null,null,null,"Resp. Técnico Fiscalização:",{"$f":"DADOS!A43","v":"Sofia Ximenes Lopes"},null,null,null,null,null,null,null,null,null,null,null,null,null,null,null,null,null,null,null,null,null,null,null,null,null,null,null,null,null,null,"Profissional CAIXA:",null,null,null,null,null,null,"Profissional CAIXA:",null,null,null,null,{"$f":"BC131","v":0}]
[null,null,null,null,null,null,null,null,null,null,null,null,null,null,null,"CREA/CAU:",null,{"$f":"DADOS!C50","v":0},null,null,null,"CREA/CAU:",{"$f":"DADOS!C43","v":"1816729965"},null,null,null,null,null,null,null,null,null,null,null,null,null,null,null,null,null,null,null,null,null,null,null,null,null,null,null,null,null,null,"Matrícula:",null,null,null,null,null,null,"Matrícula:",null,null,null,null,{"$f":"BC132","v":0}]
[null,null,null,null,null,null,null,null,null,null,null,null,null,null,null,"ART/RRT:",null,{"$f":"DADOS!D50","v":0},null,null,null,"ART/RRT:",{"$f":"DADOS!D43","v":"PE20190347838"},null,null,null,null,null,null,null,null,null,null,null,null,null,null,null,null,null,null,null,null,null,null,null,null,null,null,null,null,null,null,"CREA/CAU:",null,null,null,null,null,null,"CREA/CAU:",null,null,null,null,{"$f":"BC133","v":0}]